Cogmind - Beta 16.1 @@@ ROGUE MODE // 2026.05.01 @ 03:59:34 Player: cptwinky Result: Escaped! Performance ------------- Evolutions (9) 4500 Regions Visited (31) 6200 Robots Destroyed (407) 2035 Value Destroyed (24400) 24400 Prototype IDs (135) 2700 Alien Tech Used (6) 1200 Bonus (24521) 24521 TOTAL SCORE: 65556 Bonus ------- High Alert Combat Kills 6032 Follower Combat Kills 2141 Hunted by Unchained 500 Entered Garrisons 1000 Used RIF Installer 3000 Met Zhirov 300 Hacked Protovariant 500 Scanned by Researcher 500 Met MAIN.C 5000 Destroyed MAIN.C Shell 5000 Win 3000 Friendly Fire -2452 Cogmind --------- Core Integrity 1233/1600 Matter 246/300 Energy 1514/1520 System Corruption 18% Temperature Cool (10) Movement Flying (38) Location To Epsilon Eridani Parts ------- > --- POWER (3) -------- Hybrid Graviton Reactor Concept Zero-point Core > --- PROPULSION (6) --- Flying Biomechanical-Gravjet Exoskeleton > --- UTILITY (12) ----- Armored Scrap Engine Concept Antigrav Storage Unit Concept Weapon Articulator (fused) Concept Core Analysis Suite Mini Quantum Capacitor Concept RG22 Armor Concept RG22 Armor > --- WEAPON (4) ------- Concept XC Strikerail Concept Deflector Sword > --- INVENTORY (25) --- Concept Chromion Battery (145) Concept Chromion Battery (0) Concept NT7 Matterbank (750) Makeshift Trap Scanner Concept Weapon Articulator Concept Core Analysis Suite Improved Phase Shifter Concept Cloak Mesh Concept Cloak Mesh Concept Beam Splitter Advanced Component Analysis Suite Concept Matter Streamer Transdimensional Reconstructor Concept Lightning Penetrator Concept Lightning Penetrator Fusion Bomb Launcher Peak State ------------ > --- POWER ------------ Experimental Antimatter Reactor Graviton-ZP Reactor > --- PROPULSION ------- Flying Biomechanical-Gravjet Exoskeleton > --- UTILITY ---------- Armored Scrap Engine Advanced Heat Sink Concept Antigrav Storage Unit Concept Weapon Articulator Concept Core Analysis Suite Concept Reaction Jets Concept Cloak Mesh Concept Cloak Mesh Concept RG22 Armor Concept RG22 Armor System Mapper > --- WEAPON ----------- Concept Plasma Driver Hvy. Zero Disintegration Construct/C > --- INVENTORY -------- Hybrid Graviton Reactor Concept Zero-point Core Concept Chromion Battery Concept Chromion Battery Concept NT7 Matterbank Makeshift Trap Scanner Concept Weapon Articulator Concept Core Analysis Suite Particle Accelerator Mini Quantum Capacitor Experimental Reaction Control System Improved Phase Shifter Concept Beam Splitter Experimental Remote Shield Advanced Component Analysis Suite Concept Matter Streamer Crosscalibrator Transdimensional Reconstructor Subatomic Replicator Concept Lightning Penetrator Concept Lightning Penetrator Concept Plasma Driver Concept XC Strikerail Fusion Bomb Launcher Concept Deflector Sword [Rating: 286] Favorites ----------- Power Constructs Engine Ion Engine Power Core Fusion Compressor Reactor Constructs Propulsion Light Treads Treads Light Treads Leg Medium Armored Exoskeleton Wheel Wheel Flight Unit Constructs Utility Armored Scrap Engine Device Armored Scrap Engine Storage High-capacity Storage Unit Processor Enhanced Optical Array Hackware Relay Coupler [NC] Protection Improved Light Armor Plating Weapon Minigun Energy Gun Spread Laser Energy Cannon Constructs Ballistic Gun Minigun Ballistic Cannon Mass Driver Launcher Shock Bomb Launcher Special Weapon Remote Datajack Impact Weapon Powered Hammer Slashing Weapon Scythe Piercing Weapon Lance Special Melee Weapon Improved Datajack Build | -11 -10 -10 -8 -8 -8 -8 -8 -8 -7 -7 -7 -7 -7 -7 -5 -5 -5 -5 -5 -4 -4 -4 -4 -3 -3 -3 -2 -2 -2 -1 -1 ------- Run | Yrd Mat Sub Mat Gar Mat Gar Mat Gar Fac Gar Fac Sto Gar Rec Fac Was Fac Upp Upp Fac Upp Upp Zhi Pro Res Tes Res Qua Frg Acc Com Slots Evolved 18 | . . . 4 . . . . . 2 . . . . . 4 . . . . 2 . . . . 2 . 2 . . 2 . Power 2 | . . . . . . . . . . . . . . . 1 . . . . . . . . . 1 . . . . . . Propulsion 4 | . . . 1 . . . . . . . . . . . 1 . . . . 2 . . . . . . . . . . . Utility 10 | . . . 3 . . . . . 1 . . . . . 1 . . . . . . . . . 1 . 2 . . 2 . Weapon 2 | . . . . . . . . . 1 . . . . . 1 . . . . . . . . . . . . . . . . Parts Attached 297 | 6 6 9 37 8 2 3 . 15 19 19 . . 24 7 11 3 5 4 9 10 9 3 6 2 8 12 11 5 32 4 8 Power 23 | 1 . 1 3 2 . . . 2 . 1 . . 2 . . . . . 1 . . . . . . 2 2 . 4 . 2 Engine 12 | 1 . 1 3 2 . . . 2 . 1 . . 2 . . . . . . . . . . . . . . . . . . Core 2 | . . . . . . . . . . . . . . . . . . . 1 . . . . . . . . . . . 1 Reactor 9 | . . . . . . . . . . . . . . . . . . . . . . . . . . 2 2 . 4 . 1 Propulsion 38 | 2 . 3 11 3 1 2 . 5 4 4 . . . . . . . . . . 1 1 . . . . . 1 . . . Treads 28 | 2 . 2 8 3 1 2 . 5 4 . . . . . . . . . . . 1 . . . . . . . . . . Leg 7 | . . . 1 . . . . . . 4 . . . . . . . . . . . 1 . . . . . 1 . . . Wheel 3 | . . 1 2 . . . . . . . . . . . . . . . . . . . . . . . . . . . . Hover . | . . . . . . . . . . . . . . . . . . . . . . . . . . . . . . . . Flight . | . . . . . . . . . . . . . . . . . . . . . . . . . . . . . . . . Utility 155 | 1 4 1 12 1 1 1 . 4 7 7 . . 16 4 7 1 3 4 5 9 3 2 5 2 8 7 7 3 24 4 2 Device 73 | . 1 1 5 . . 1 . 1 2 2 . . 1 1 1 1 1 3 5 5 2 2 3 1 7 3 5 2 13 2 2 Storage 11 | 1 3 . 1 . . . . . . . . . . 1 1 . . 1 . 1 . . . . . 1 . . 1 . . Processor 15 | . . . 1 . . . . 1 . 1 . . . 1 1 . 1 . . 2 1 . . . 1 2 . . 2 1 . Hackware 25 | . . . . . 1 . . 2 4 3 . . 10 . . . . . . . . . . . . . 2 . 2 1 . Protection 31 | . . . 5 1 . . . . 1 1 . . 5 1 4 . 1 . . 1 . . 2 1 . 1 . 1 6 . . Artifact . | . . . . . . . . . . . . . . . . . . . . . . . . . . . . . . . . Weapon 81 | 2 2 4 11 2 . . . 4 8 7 . . 6 3 4 2 2 . 3 1 5 . 1 . . 3 2 1 4 . 4 Energy Gun 11 | 2 2 1 1 . . . . . . . . . . . . . . . . . 3 . . . . . . . 1 . 1 Energy Cannon 10 | . . . 1 . . . . . . . . . . . . . 2 . 1 1 . . . . . 2 1 . 1 . 1 Ballistic Gun 33 | . . 2 4 1 . . . 3 6 7 . . 5 . . 2 . . 1 . . . . . . . . . . . 2 Ballistic Cannon 1 | . . . . . . . . . . . . . . . 1 . . . . . . . . . . . . . . . . Launcher 6 | . . . 3 . . . . . . . . . . 1 . . . . . . . . . . . . 1 . 1 . . Special Weapon 9 | . . 1 1 . . . . 1 1 . . . 1 . . . . . 1 . 1 . . . . 1 . 1 . . . Impact Weapon 3 | . . . 1 . . . . . . . . . . 2 . . . . . . . . . . . . . . . . . Slashing Weapon 6 | . . . . 1 . . . . . . . . . . 3 . . . . . . . 1 . . . . . 1 . . Piercing Weapon 1 | . . . . . . . . . . . . . . . . . . . . . 1 . . . . . . . . . . Special Melee Weapon 1 | . . . . . . . . . 1 . . . . . . . . . . . . . . . . . . . . . . Unidentified Prototypes 18 | . . . 1 . . . . . 1 . . . . 1 . . 1 . . . . . 3 . . 7 . . 4 . . Parts Lost 71 | . . 6 3 1 . . . 4 15 . . . 6 . 1 . . . 2 . . . . . . 2 . . 14 . 17 Power 12 | . . 1 1 . . . . . 1 . . . . . . . . . 1 . . . . . . 2 . . 3 . 3 Propulsion 10 | . . 3 1 . . . . 1 4 . . . . . . . . . . . . . . . . . . . . . 1 Utility 31 | . . 1 . 1 . . . 2 4 . . . 5 . 1 . . . . . . . . . . . . . 10 . 7 Weapon 18 | . . 1 1 . . . . 1 6 . . . 1 . . . . . 1 . . . . . . . . . 1 . 6 Highest Loss Streak 15 | . . 3 1 1 . . . 3 14 . . . 2 . 1 . . . 2 . . . . . . 1 . . 3 . 15 To Critical Strikes . | . . . . . . . . . . . . . . . . . . . . . . . . . . . . . . . . Average Backups 16 | 3 9 12 21 24 25 24 25 24 24 4 5 5 4 5 8 9 9 10 13 18 19 20 19 20 19 19 19 19 20 24 23 Power . | . 1 1 2 1 1 1 1 . . . . . . . . . . . . . . . . . . . . . . 2 1 Propulsion 1 | 2 2 3 4 4 5 4 4 2 2 . . . . . . . . . . . . . . . . . . . . . . Utility 7 | . 2 2 4 6 8 8 9 9 7 3 4 4 2 1 3 4 4 5 6 12 14 13 13 13 12 11 11 11 11 14 14 Weapon 4 | . 3 4 9 10 10 9 9 8 10 . . . . 1 1 3 2 2 2 2 2 3 2 2 2 2 3 3 3 6 5 Tool/Special . | . . . . . . . . . . . . . . . . . . . . . . . . . . . . . . . . Unused Backups 86 | . 2 . 9 1 . 1 . 5 9 3 . . 2 4 3 . 4 . 3 2 2 2 2 . 4 7 2 1 9 . 9 Power 4 | . . . 2 . . . . . 1 1 . . . . . . . . . . . . . . . . . . . . . Propulsion 7 | . 2 . 2 . . . . . . . . . 1 2 . . . . . . . . . . . . . . . . . Utility 50 | . . . 3 1 . 1 . 3 4 2 . . 1 . 1 . 1 . . 2 2 1 2 . 3 6 2 1 7 . 7 Weapon 20 | . . . 2 . . . . 2 3 . . . . 2 1 . 3 . 2 . . 1 . . 1 1 . . 1 . 1 Tool/Special 5 | . . . . . . . . . 1 . . . . . 1 . . . 1 . . . . . . . . . 1 . 1 Average Slot Usage (%) 74 | . 88 99 97 89 90 92 100 99 96 84 84 84 80 71 57 68 63 58 54 52 52 52 51 51 52 55 55 56 55 62 58 Engine 5 | . 14 14 9 8 9 9 9 9 6 6 7 7 7 6 5 5 . . . . . . . . . . . . . . . Reactor 2 | . . . . . . . . . . . . . . . . . . . . 2 5 5 5 5 4 8 8 8 7 8 6 Treads 10 | . 28 27 23 27 27 27 27 27 22 4 . . . . . . . . 1 3 . . . . . . . . . . . Leg 2 | . . . . . . . . . . 11 7 7 7 6 4 . . . 3 . 2 4 1 5 4 1 4 3 . . . Device 10 | . 2 13 16 9 1 6 18 2 6 8 . . . 3 5 8 5 11 12 9 10 10 9 14 19 13 12 12 17 24 22 Storage 6 | . 14 14 9 9 9 9 9 9 6 . . . . 4 5 5 5 5 5 5 5 5 5 5 4 4 4 4 4 4 4 Processor 8 | . . . 7 9 9 9 9 15 7 10 15 15 12 2 4 5 10 11 11 14 15 15 12 10 9 12 9 8 1 4 4 Hackware 4 | . . . . . 7 5 . 7 15 18 23 23 17 14 5 5 5 . . . . . . . . . 3 4 2 2 2 Protection 5 | . . . 9 9 9 9 9 9 6 2 7 7 11 14 10 7 5 4 1 . . . 2 . . . 4 4 7 8 6 Energy Gun 3 | . 28 23 3 . . . . . . . . . . 1 4 . . 5 1 4 2 . . . . . . . . . . Ballistic Gun 7 | . . 3 13 16 18 16 18 17 18 21 23 23 21 11 . 8 3 . 1 . . . . . . . . . . . . Slashing Weapon 1 | . . . . . . 1 . . . . . . . . 2 6 9 5 5 5 1 . 4 5 4 3 3 3 1 3 1 Peak Build Rating 286 | 6 10 11 33 33 34 34 33 37 42 51 51 51 57 63 78 84 88 78 83 99 114 105 111 117 129 155 174 182 263 286 286 Average Rating 76 | 5 8 9 26 31 32 33 33 33 39 37 51 50 50 53 64 82 79 74 74 86 95 97 106 115 123 143 168 175 199 281 262 On Entrance 80 | . 6 10 11 32 33 34 33 33 32 12 51 51 51 57 57 78 84 76 75 74 89 100 105 111 117 129 147 172 171 262 286 Avg Prop Armor Cover (%) 12 | . . 13 14 . . . . . 12 10 . . . . . . . . . . . . . . . . . . . . . Naked Turns . | . . . . . . . . . . . . . . . . . . . . . . . . . . . . . . . . Heaviest Build 169 | 13 52 52 114 117 113 113 107 107 111 24 24 24 37 42 40 46 46 48 50 81 76 76 84 78 97 115 129 166 169 128 128 Greatest Support 185 | 40 40 40 60 60 60 60 60 60 62 50 50 50 50 66 84 84 84 67 105 105 128 128 97 136 142 142 128 185 148 132 132 Greatest Overweight (x) 9 | . 1 5 9 1 1 1 1 1 2 1 . . . 2 . . . . . 1 1 . . . . 1 1 1 1 . . Average Overweight (x) . | . . 1 2 1 1 1 1 1 1 . . . . . . . . . . . . . . . . . . . . . . Largest Inventory Capacity 25 | 8 20 20 25 25 25 25 25 25 25 5 5 5 5 8 10 10 10 15 15 20 20 20 20 20 20 20 20 20 25 25 25 Average Capacity 18 | 7 12 20 24 25 25 25 25 25 24 5 5 5 5 6 8 10 10 13 15 19 20 20 20 20 20 20 20 20 21 25 25 Most Carried 25 | 7 11 18 25 25 25 25 25 25 25 5 5 5 5 8 10 10 10 15 15 20 20 20 20 20 20 20 20 20 25 25 25 Average Carried 16 | 4 9 12 23 24 25 24 25 24 24 4 5 5 4 5 8 9 9 11 13 18 19 19 19 20 19 19 19 19 20 24 23 Final Capacity 25 | 8 20 20 25 25 25 25 25 25 5 5 5 5 5 8 10 10 10 15 15 20 20 20 20 20 20 20 20 20 25 25 25 Final Carried 25 | 7 11 17 25 25 25 25 25 25 5 5 5 5 5 7 10 10 10 14 15 20 20 20 20 20 20 20 20 20 25 25 16 Scrap Engine Consumption 302 | . . . . . . . . . . . . . . 31 17 3 17 1 29 24 33 9 6 4 5 30 23 12 57 . 1 Constructs Created 5 | . . . . . . . . . . . . . . 3 . . . . 1 . . . . . . . . . 1 . . Constructs Modified 127 | . . . . . . . . . . . . . . 9 4 . 9 1 14 13 15 3 2 1 3 15 7 9 22 . . Class Distribution -------------------- 37% | Construct 23% | Mutant 7% | Scavenger-Mutant 4% | Commander-Tank 3% | Bothacker-Mutant Dominant Class ---------------- Mutant | -10/Materials Mutant | -10/Subcaves Scavenger-Mutant | -8/Materials Mutant | -8/Garrison Mutant | -8/Materials Bothacker-Mutant | -8/Garrison Bothacker-Mutant | -8/Materials Botlord-Mutant | -8/Garrison Botlord-Gunner | -7/Factory Skirmisher | -7/Garrison Gunner | -7/Factory Gunner | -7/Storage Commander-Tank | -7/Garrison Commander-Tank | -7/Recycling Mutant | -5/Factory Construct | -5/Waste Construct | -5/Factory Construct | -5/Upper Caves Construct | -5/Upper Caves Construct | -4/Factory Construct | -4/Upper Caves Construct | -4/Upper Caves Construct | -4/Zhirov Construct | -3/Proximity Caves Construct | -3/Research Construct | -3/Testing Construct | -2/Research Construct | -2/Quarantine Construct | -2/Protoforge Hacker-Construct | -1/Access Hacker-Construct | -1/Command Resources | -11 -10 -10 -8 -8 -8 -8 -8 -8 -7 -7 -7 -7 -7 -7 -5 -5 -5 -5 -5 -4 -4 -4 -4 -3 -3 -3 -2 -2 -2 -1 -1 ----------- Run | Yrd Mat Sub Mat Gar Mat Gar Mat Gar Fac Gar Fac Sto Gar Rec Fac Was Fac Upp Upp Fac Upp Upp Zhi Pro Res Tes Res Qua Frg Acc Com Matter Collected 13173 | 260 60 272 1407 1021 26 272 13 912 341 256 . 375 1558 381 172 121 224 57 360 168 150 80 111 90 122 717 500 201 2650 110 186 Remotely 231 | . . . . . . . . . . . . . . . . . . . . . . . . . . . 194 . 37 . . Salvage Created 23756 | 68 239 366 1607 660 . 32 37 888 346 56 . 156 1395 111 458 . 505 76 842 191 900 898 365 48 329 2400 1738 881 7125 50 989 Parts 954 | 5 19 19 81 34 . 5 1 59 15 2 . 8 61 2 19 . 21 . 19 6 28 17 5 4 10 81 77 43 280 4 29 Haulers Intercepted 10 | . 2 . 4 . . . . . 1 . . . . . . . . . . 1 . . . . 1 1 . . . . . Recyclers Shooed 11 | . 2 . 3 . . . . . 3 . . . . 1 . . . . . 1 . . . . . . 1 . . . . Parts Field Recycled . | . . . . . . . . . . . . . . . . . . . . . . . . . . . . . . . . Retrieved Matter . | . . . . . . . . . . . . . . . . . . . . . . . . . . . . . . . . Parts Self-Destructed 36 | . . 5 . . . . . . . . . . . . . . . . 8 . 11 9 1 2 . . . . . . . Prevented 9 | . . . . . . . . . . . . . . . . . . . 9 . . . . . . . . . . . . Parts Restored 6 | . . . . . . . . . . . . . . . . . . . . . . . . . . . . . 3 3 . Faulty 6 | . . . . . . . . . . . . . . . . . . . . . . . . . . . . . 3 3 . Kills | -11 -10 -10 -8 -8 -8 -8 -8 -8 -7 -7 -7 -7 -7 -7 -5 -5 -5 -5 -5 -4 -4 -4 -4 -3 -3 -3 -2 -2 -2 -1 -1 ------- Run | Yrd Mat Sub Mat Gar Mat Gar Mat Gar Fac Gar Fac Sto Gar Rec Fac Was Fac Upp Upp Fac Upp Upp Zhi Pro Res Tes Res Qua Frg Acc Com Combat Hostiles Destroyed 333 | . 8 10 36 19 . 3 1 22 1 . . 3 27 1 10 . 5 . 9 1 3 6 . 1 3 22 21 11 104 . 6 Melee 13 | . . . 1 . . . . . . . . . . . . . 5 . 1 . 3 2 . . . 1 . . . . . Guns 111 | . 8 10 18 15 . 2 1 19 1 . . 3 27 1 3 . . . 1 . . . . . . . . . 1 . 1 Cannons 92 | . . . . . . . . . . . . . . . . . . . 4 1 . 4 . 1 3 15 19 11 31 . 3 AOE 66 | . . . 15 4 . 1 . 3 . . . . . . 5 . . . 1 . . . . . . . . . 37 . . Classes Destroyed 33 | 2 5 4 5 . . . . 2 . . . 1 . . . . . 1 1 . . . . . 1 1 1 . 9 . . Worker 14 | . 1 . 2 . . . . . 2 . . . . . 2 . 1 . . 1 . . . . . 1 2 . 2 . . Builder 6 | . . . . . . . . . . . . . . . . . . . . . . . . . 1 . . . 5 . . Tunneler 1 | 1 . . . . . . . . . . . . . . . . . . . . . . . . . . . . . . . Hauler 10 | . 2 . 4 . . . . . 1 . . . . . . . . . . 1 . . . . 1 1 . . . . . Recycler 13 | 1 . . 1 . . . . . 3 . . . . . . . 1 . . . . . . . . 5 1 1 . . . Carrier 1 | . . . . . . . . . . . . . . . . . . . . . . . . . . . . . 1 . . Minesweeper 1 | . . . . . . . . . . . . . . . . . . 1 . . . . . . . . . . . . . Mechanic 5 | . 1 . . . . . . . . . . . . . . . 1 . . . . . . . . . . . 3 . . Operator 4 | . . . 1 . . . . . . . . . . . . . . . . 1 . . . . . . . 1 . . 1 Drone 6 | . . . . . . . . . . . . . . . . . . . . . . . . . . . . . 6 . . Watcher 3 | . . . 1 . . . . . . . . . . . . . . . . . . . . . . 1 . . . 1 . Swarmer 41 | . 6 . 7 6 . 3 . 5 . . . . 3 . 4 . . . . . 3 1 . . . . . . 3 . . Saboteur 1 | . . . . . . . . . . . . . . . . . . . . . . . . . . . . . 1 . . Grunt 115 | . 2 . 19 8 . . . 8 . . . 2 12 . 4 . 3 . 2 . 1 4 . . 2 10 5 4 29 . . Brawler 9 | . . . 1 1 . . . . . . . . . . . . . . . . . . . . . . 1 . 6 . . Duelist 5 | . . . 1 . . . . . . . . . . . . . . . . . . . . . . 1 . . 3 . . Protector 1 | . . . . . . . . . . . . . . . . . . . . . . . . . . . . . 1 . . Researcher 7 | . . . . . . . . . . . . . . . . . . . . . . . . . . 2 . . 5 . . Sentry 36 | . . 1 7 4 . . 1 2 . . . . 5 . . . . . . . . 1 . . 1 . 3 . 10 . 1 Demolisher 2 | . . . . . . . . 1 . . . . 1 . . . . . . . . . . . . . . . . . . Specialist 5 | . . . . . . . . . . . . 1 . . . . . . . . . . . . . . 4 . . . . Hunter 21 | . . . 1 . . . . 1 . . . . 1 . . . . . . . . . . . . 6 4 . 8 . . Programmer 49 | . . . . . . . . 5 1 . . . 5 . 2 . 2 . 2 1 . . . 1 . 5 3 7 12 . 3 Q-Series 1 | . . . . . . . . . . . . . . . . . . . . . . . . . . . . . 1 . . Behemoth 2 | . . . . . . . . . . . . . . . . . . . . . . . . . . . 1 . 1 . . Hotshot 10 | . . . . . . . . . . . . . . . . . . . . . . . . . . . . . 10 . . Decapitator 9 | . . . . . . . . . . . . . . . . . . . . . . . . . . . . . 9 . . Immortal 1 | . . . . . . . . . . . . . . . . . . . . . . . . . . . . . 1 . . Combat Programmer 1 | . . . . . . . . . . . . . . . . . . . . . . . . . . . . . . . 1 Alpha 7 2 | . . . . . . . . . . . . . . . . . . . . . . . . . . . . . 2 . . V-Series 2 | . . . . . . . . . . . . . . . . . . . . . . . . . . . . . 2 . . Artisan 2 | . . 2 . . . . . . . . . . . . . . . . . . . . . . . . . . . . . Cobbler 1 | . . 1 . . . . . . . . . . . . . . . . . . . . . . . . . . . . . Subdweller 10 | . . 9 . . . . . . . . . . . 1 . . . . . . . . . . . . . . . . . Decomposer 1 | . . . . . . . . . . . . . . . . . . . 1 . . . . . . . . . . . . Packrat 5 | . . . . . . . . . . . . . . . . . . 1 2 . . 2 . . . . . . . . . Tinkerer 1 | . . . . . . . . . . . . . . . . . . . . . . . . . . . . . 1 . . Thug 3 | . . . . . . . . . . . . . . . . . . . 3 . . . . . . . . . . . . Butcher 4 | . . . . . . . . . . . . . . . . . . . 1 . 3 . . . . . . . . . . Guerrilla 2 | . . . . . . . . . . . . . . . . . . . . . 2 . . . . . . . . . . Mutant 3 | . . . . . . . . . . . . . . . . . . . 1 . 1 1 . . . . . . . . . Commander 1 | . . . . . . . . . . . . . . . . . . . . . 1 . . . . . . . . . . Best Kill Streak 19 | 2 6 2 15 6 . 2 1 4 1 . . 2 5 1 4 . 2 1 4 1 3 2 . 1 2 11 7 3 19 1 3 Combat Bots Only 15 | . 3 2 11 6 . 2 1 4 1 . . 2 5 1 4 . 2 . 4 1 3 2 . 1 2 7 6 3 15 . 3 Max Kills in Single Turn 6 | 1 1 1 6 3 . 1 1 3 1 . . 1 2 1 3 . 1 1 1 1 1 1 . 1 1 1 2 1 3 1 1 Gunslinging 1 | . . . . 1 . . . . . . . . 1 . . . . . . . . . . . . . . . . . . Exploded 3 | . . . 3 3 . 1 . 3 . . . . . . 3 . . . 1 . . . . . . . . . 3 . . Melee 1 | . . . 1 . . . . . . . . . . . . . 1 . 1 . 1 1 . . . 1 . . . . . Uniques/NPCs Destroyed 1 | . . . . . . . . . . . . . . . . . . . . . . . . . . . . . . . 1 MAIN.C Shell (-1/Command) Combat | -11 -10 -10 -8 -8 -8 -8 -8 -8 -7 -7 -7 -7 -7 -7 -5 -5 -5 -5 -5 -4 -4 -4 -4 -3 -3 -3 -2 -2 -2 -1 -1 -------- Run | Yrd Mat Sub Mat Gar Mat Gar Mat Gar Fac Gar Fac Sto Gar Rec Fac Was Fac Upp Upp Fac Upp Upp Zhi Pro Res Tes Res Qua Frg Acc Com Hostile Shots Fired 2205 | . 34 37 119 73 . 30 . 90 191 . . 8 187 5 76 . 35 . 109 14 30 45 . 3 9 149 70 71 547 8 265 Missed 758 | . 10 6 37 16 . 10 . 29 67 . . 2 59 1 23 . 4 . 46 4 8 9 . . 1 47 24 25 202 4 124 Deflected 10 | . . . . . . . . . . . . . . . . . . . . . . . . . . . . 2 . . 8 Hits 1447 | . 24 31 82 57 . 20 . 61 124 . . 6 128 4 53 . 31 . 63 10 22 36 . 3 8 102 46 46 345 4 141 Melee 19 | . . . 1 1 . . . . . . . . 3 . . . . . . . . . . . . 1 . . 13 . . Projectile 1428 | . 24 31 81 56 . 20 . 61 124 . . 6 125 4 53 . 31 . 63 10 22 36 . 3 8 101 46 46 332 4 141 AOE 60 | . . . . . . . . 7 7 . . . 3 . 1 . . . . . . . . . . 1 . . 29 . 12 Critical Strikes 78 | . . . 3 3 . . . 2 3 . . 1 2 . 3 . 1 . 1 1 . 3 . . . 7 3 2 24 2 17 Actively Blocked 1 | . . . . . . . . . . . . . . . . . . . . . . . . . . . . . 1 . . Part Disruptions 5 | . . . . . . . . 1 . . . . . . . . . . . . . . . . . 1 . . . . 3 Damage Taken 32412 | . 257 647 1301 751 . 282 84 1116 2194 . . 210 1665 80 1113 . 615 . 1160 243 362 688 . 72 185 1800 1039 1234 9581 87 5646 Core 2855 | . 51 89 85 42 . 31 . 175 425 . . 8 167 . 167 . 60 . 179 69 66 65 . . 16 183 103 100 407 . 367 Absorbed by Shields 574 | . . . . 61 . . . 4 . . . . 41 . . . . . . . . . . . . 8 . . 333 . 127 Redirected to Shielding 587 | . . . . . . . . . 54 . . . . . . . . . . . . . . . . . . 29 504 . . Ignored by Resistances 1172 | . . . . . . . . . . . . . . . . . . . . . . . . . . . . . 403 24 745 Regen/Repaired (Parts) 11541 | . . . . . . . . . . . . . 51 26 253 . 126 147 485 124 157 369 149 . 104 809 1060 665 5656 . 1360 Core Remaining (%) 61 | 100 . 44 . . . . . 39 . . . . . 14 . . . . 59 . . . . 82 . 84 . . 54 . 77 Volleys Fired 1141 | 4 21 51 99 51 . 9 2 69 29 9 . 5 105 9 46 11 8 3 55 26 . 30 3 6 12 61 66 27 269 6 49 Largest 3 | 2 2 2 2 2 . 2 2 2 3 3 . 3 3 3 1 3 2 1 1 2 . 1 1 1 1 1 1 1 2 2 2 Hottest 481 | 90 130 130 100 50 . 50 50 90 75 81 . 81 90 90 39 92 81 102 102 176 . 244 7 366 366 366 195 341 481 324 184 Shots Fired 1558 | 8 42 85 161 84 . 15 4 132 50 16 1 15 231 24 45 29 9 3 54 32 . 30 3 6 12 58 66 27 260 7 49 Gun 932 | 8 42 68 126 72 . 14 4 126 31 16 1 15 204 24 40 18 4 3 18 25 . . . . . . . . 65 . 8 Cannon 443 | . . . . . . . . 1 . . . . . . . 11 3 . 31 7 . 30 . 6 12 55 60 24 155 7 41 Launcher 88 | . . . 27 12 . 1 . 2 . . . . . . 5 . . . 4 . . . . . . . 3 . 34 . . Special 95 | . . 17 8 . . . . 3 19 . . . 27 . . . 2 . 1 . . . 3 . . 3 3 3 6 . . Kinetic 912 | . . 24 101 72 . 14 4 126 31 16 1 15 204 22 . 18 5 . 44 4 . 30 . 6 12 42 49 . 69 . 3 Thermal 344 | 8 42 61 33 . . . . 1 . . . . . 2 40 11 . 3 5 28 . . . . . . 8 24 61 5 12 Explosive 36 | . . . 9 5 . 1 . 2 . . . . . . . . . . . . . . . . . . . . 19 . . Electromagnetic 161 | . . . 18 7 . . . . . . . . . . 5 . 2 . 4 . . . . . . 13 6 . 101 . 5 Entropic 35 | . . . . . . . . . . . . . . . . . . . . . . . . . . . . . 4 2 29 Robot Hit Streak 43 | 7 11 13 13 14 . 8 1 15 16 8 . 4 11 6 7 10 5 6 4 8 . 7 6 8 13 12 11 15 43 . 17 Robot Miss Streak 5 | . 3 2 3 2 . 1 3 2 3 1 1 2 5 2 3 1 1 1 2 3 . 1 . . 1 4 2 2 3 . 1 Penetration Max 2 | . . . . . . . . . . . . . 1 . . . . . . . . . . . . . 1 . 2 . 1 Secondary Targets 16 | . 2 . 2 4 . 1 . 3 . . . 1 3 . . . . . . . . . . . . . . . . . . Max Gunslinging Chain 1 | . 1 . 1 1 . 1 . 1 . . . 1 1 . . . . . . . . . . . . . . . . . . Capacitor 75 | . . . . . . . . . . . . . . . . . . . . . . . . . . . . . 45 . 30 Shots Hit Robots 1181 | 7 33 56 94 56 . 10 1 97 38 9 . 8 141 12 40 23 31 8 35 19 31 36 14 2 10 66 43 23 200 1 37 Core Hits 712 | 3 33 66 75 29 . 3 1 39 7 3 . 3 60 3 14 3 11 2 18 8 16 18 4 1 2 19 22 9 221 1 18 Critical Kills 17 | . . . 1 . . . . 1 . . . . . . . . . . . . . 3 . . . 3 2 3 3 . 1 Critical Parts Destroyed 27 | . . . 4 . . . . 1 . 1 . . 1 . 2 . . . . . . 5 . . . . 9 2 2 . . Critical Strikes 67 | . 1 . 5 . . . . 2 1 1 . . 1 . 2 . 2 2 1 1 3 9 . . 2 8 12 5 8 . 1 Burn 1 | . 1 . . . . . . . . . . . . . . . . . . . . . . . . . . . . . . Meltdown 7 | . . . . . . . . . . . . . . . . . . . . . . . . . . 3 . . 3 . 1 Destroy 34 | . . . 3 . . . . 2 . 1 . . 1 . . . . . . . . 8 . . . . 12 5 2 . . Blast 5 | . . . . . . . . . . . . . . . . . . . 1 . . . . . 2 . . . 2 . . Smash 4 | . . . 2 . . . . . . . . . . . 2 . . . . . . . . . . . . . . . . Sever 12 | . . . . . . . . . 1 . . . . . . . 2 2 . 1 . . . . . 5 . . 1 . . Impale 4 | . . . . . . . . . . . . . . . . . . . . . 3 1 . . . . . . . . . Melee Attacks 399 | . . . 5 12 . 5 . 6 12 . . . . 26 17 . 48 7 11 22 56 26 14 2 13 39 26 6 35 8 3 Impact 47 | . . . 5 . . . . . . . . . . 26 16 . . . . . . . . . . . . . . . . Slashing 279 | . . . . 12 . 5 . 6 12 . . . . . 1 . 48 7 11 22 9 . 14 2 13 39 26 6 35 8 3 Piercing 73 | . . . . . . . . . . . . . . . . . . . . . 47 26 . . . . . . . . . Sneak Attacks 64 | . . . 1 . . . . . 1 . . . . . 3 . 7 3 3 3 22 5 . . 1 8 . . 7 . . Combat Hostiles 5 | . . . 1 . . . . . . . . . . . 1 . 2 . . . 1 . . . . . . . . . . Follow-up Attacks 4 | . . . . . . . . . . . . . . . . . 4 . . . . . . . . . . . . . . Damage Inflicted 76512 | 80 417 881 4165 1491 . 400 22 1936 685 149 . 179 2653 239 1859 555 1097 323 1570 730 1755 1916 1018 289 1248 7477 6857 3255 27884 81 5301 Guns 14140 | 80 405 881 1693 1045 . 150 22 1730 402 149 . 179 2653 239 744 385 55 45 164 501 . . . . . . . . 2340 . 278 Cannons 38557 | . . . . . . . . . . . . . . . . 170 49 . 563 41 . 882 . 289 1156 5385 6559 3203 15237 . 5023 Explosions 13659 | . . . 2236 446 . 250 . 206 . . . . . . 483 . . . 411 . . . . . . . 284 . 9343 . . Melee 9833 | . . . 138 . . . . . 153 . . . . . 632 . 993 278 432 188 1755 1034 1018 . 92 2092 . 52 895 81 . Ramming 323 | . 12 . 98 . . . . . 130 . . . . . . . . . . . . . . . . . 14 . 69 . . Kinetic 29598 | . . 182 1315 1045 . 150 22 1730 402 149 . 179 2653 222 . 385 75 . 644 25 . 882 . 289 1156 4195 5357 . 8392 . 149 Thermal 14747 | 80 405 699 816 . . . . . . . . . . 17 1059 170 . 45 167 517 . . . . . . 1113 3203 5855 . 601 Explosive 8661 | . . . 1168 446 . 250 . 206 . . . . . . . . . . . . . . . . . . . . 6591 . . Electromagnetic 8611 | . . . 630 . . . . . . . . . . . 168 . 29 . 327 . . . . . . 1190 373 . 5765 . 129 Impact 705 | . . . 138 . . . . . . . . . . . 567 . . . . . . . . . . . . . . . . Slashing 6650 | . . . . . . . . . 153 . . . . . 65 . 993 278 432 188 311 . 1018 . 92 2092 . 52 895 81 . Piercing 2478 | . . . . . . . . . . . . . . . . . . . . . 1444 1034 . . . . . . . . . Entropic 4739 | . . . . . . . . . . . . . . . . . . . . . . . . . . . . . 317 . 4422 Highest Corruption 29 | . . . 1 1 1 1 1 8 11 11 11 12 22 22 9 13 16 16 17 1 . . . 1 . 7 1 3 29 . 18 Average Corruption 9 | . . . 1 1 1 1 1 6 3 11 11 11 18 22 6 12 13 16 15 1 . . . 1 . 5 1 1 16 . 8 Corruption Purged 11 | . . . . . . . . . . . . . . . 3 . . . 4 1 . . . . . . . 3 . . . Corruption Blocked 1 | . . . . . . . . . . . . . . . . . . . . 1 . . . . . . . . . . . Effects 564 | . . . 3 12 2 7 1 40 19 28 6 9 87 75 14 8 33 14 79 1 . . . 4 . 17 1 4 91 . 9 Message Errors 118 | . . . . 3 1 2 . 6 4 4 . 2 23 24 4 1 9 2 13 . . . . . . 3 . . 14 . 3 Matter Fused 146 | . . . . 4 . 2 1 9 4 9 3 3 14 23 6 1 11 2 24 1 . . . 1 . 7 1 . 20 . . Heat Flow Errors 74 | . . . 3 3 . . . 7 3 5 . 1 8 4 . 1 5 2 12 . . . . 2 . 1 . 3 14 . . Energy Discharges 64 | . . . . 1 . 1 . 7 2 3 . 1 14 8 1 1 2 4 6 . . . . . . . . . 12 . 1 Parts Rejected 16 | . . . . . . . . . . . 1 1 4 . . 1 1 . 1 . . . . . . 1 . . 4 . 2 Parts Fused 4 | . . . . . . . . 1 . . . . . 1 . 1 . . . . . . . . . . . . 1 . . Data Loss (minor) 64 | . . . . 1 1 1 . 5 3 3 . . 11 8 1 . 4 3 14 . . . . 1 . 1 . 1 6 . . Data Loss (major) 18 | . . . . . . 1 . 2 2 2 1 . 4 1 1 . . . 2 . . . . . . 1 . . 1 . . Misfires 12 | . . . . . . . . 2 1 1 1 . 2 3 . 1 . . . . . . . . . . . . 1 . . Alerts 9 | . . . . . . . . 1 . 1 . . . 3 . 1 . 1 1 . . . . . . . . . 1 . . Misdirections 15 | . . . . . . . . . . . . 1 2 . . . 1 . 5 . . . . . . . . . 4 . 2 Weapon Failures 24 | . . . . . . . . . . . . . 5 . 1 . . . 1 . . . . . . 3 . . 13 . 1 Overload Shots 1 | . . . . . . . . 1 . . . . . . . . . . . . . . . . . . . . . . . Overflow Damage 7631 | . . . 183 11 . 47 . 5 32 . . . . . 250 . 85 125 119 32 147 114 139 81 160 1793 1064 970 2011 . 263 Projectiles 5615 | . . . . . . . . . . . . . . . . . . . 29 . . 12 . 81 160 1470 1064 970 1566 . 263 Explosions 458 | . . . 129 11 . 47 . 5 . . . . . . 27 . . . . . . . . . . . . . 239 . . Melee 1558 | . . . 54 . . . . . 32 . . . . . 223 . 85 125 90 32 147 102 139 . . 323 . . 206 . . Knockbacks 59 | . . . 2 . . . . . . . . . . . 2 . . . 7 . . 4 . 1 1 17 8 . 17 . . Impact 5 | . . . 2 . . . . . . . . . . . 2 . . . . . . . . . . . . . 1 . . Kinetic 51 | . . . . . . . . . . . . . . . . . . . 7 . . 4 . 1 1 15 8 . 15 . . Secondary 3 | . . . . . . . . . . . . . . . . . . . . . . . . . . 2 . . 1 . . Self-Inflicted Damage 787 | . . . 104 66 . . . . . . . . . . 47 . . . . . . . . . . . . . 570 . . Shots 24 | . . . 3 2 . . . . . . . . . . 1 . . . . . . . . . . . . . 18 . . Rammed 19 | . 5 . 7 . . . . . 6 . . . . . . . . . . . . . . . . . . . 1 . . Targets Rammed 22 | . 6 . 7 . . . . . 7 . . . . . . . . . . . . . . . . . 1 . 1 . . Kicked 1 | . . . . . . . . . . . . . . . . . . . . . . . . . . . 1 . . . . Crushed 2 | . 1 . . . . . . . 1 . . . . . . . . . . . . . . . . . . . . . . Highest Temperature 445 | 90 187 36 135 236 . 24 14 261 257 262 2 261 331 237 3 232 209 237 310 324 . 316 . 290 308 445 270 284 411 126 288 Average Temperature 79 | 40 77 14 23 48 . 10 10 46 57 98 2 63 85 85 3 111 90 83 87 93 . 115 . 102 147 174 89 117 123 33 78 Received Heat Transfer 5074 | . 81 141 576 309 . 18 . 198 105 . . 81 345 24 39 . 99 . 225 9 9 251 . . 27 162 108 117 2098 . 52 Effects 5 | . . . . . . . . . . . . . 1 . . . . . 2 . . . . 1 . . . . 1 . . Shutdowns 2 | . . . . . . . . . . . . . . . . . . . 1 . . . . . . . . . 1 . . Energy Bleed 3 | . . . . . . . . . . . . . 1 . . . . . 1 . . . . 1 . . . . . . . Siege Activations . | . . . . . . . . . . . . . . . . . . . . . . . . . . . . . . . . Martial Activations . | . . . . . . . . . . . . . . . . . . . . . . . . . . . . . . . . Shielding Activations 1 | . . . . . . . . . . . . . . . . . . . . . . . . . . . . 1 . . . Total Turns 120 | . . . . . . . . . . . . . . . . . . . . . . . . . . . . 120 . . . Longest Duration 120 | . . . . . . . . . . . . . . . . . . . . . . . . . . . . 120 . . . Robots Disrupted 1 | . . . . . . . . . . . . . . . . . 1 . . . . . . . . . . . . . . Combat Hostiles 1 | . . . . . . . . . . . . . . . . . 1 . . . . . . . . . . . . . . Robots Corrupted 46 | . . . 2 . . . . . . . . . . . 2 . . . 2 . . . . . . 3 2 . 34 . 1 Combat Hostiles 43 | . . . 2 . . . . . . . . . . . 2 . . . 2 . . . . . . 3 2 . 31 . 1 Parts Fried 59 | . . . 4 . . . . . 1 . . 1 . . 1 . . . 2 . . . . . . 14 3 . 32 . 1 Impact Corruptions 15 | . . . 2 . . . . . 1 . . . . . 9 . . . . . . . . . . 2 . . 1 . . Robots Melted 7 | . . . . . . . . . . . . . . . . . . . . . . . . . . 3 . . 3 . 1 Combat Hostiles 7 | . . . . . . . . . . . . . . . . . . . . . . . . . . 3 . . 3 . 1 Parts Melted 25 | . 1 2 2 . . . . . . . . . . . . . . . 3 . . . . . . 5 . . 12 . . Heat Transferred 7384 | 211 771 845 800 . . . . . . . . . . 37 350 370 . 100 250 37 . . . . . . 222 703 2376 . 312 Parts Sabotaged . | . . . . . . . . . . . . . . . . . . . . . . . . . . . . . . . . Parts Stolen . | . . . . . . . . . . . . . . . . . . . . . . . . . . . . . . . . Parts Stripped . | . . . . . . . . . . . . . . . . . . . . . . . . . . . . . . . . Power Chain Reactions 7 | . . . . . . . . . . . . . . . 4 . . . 1 . . . . . . . . . 2 . . Alert | -11 -10 -10 -8 -8 -8 -8 -8 -8 -7 -7 -7 -7 -7 -7 -5 -5 -5 -5 -5 -4 -4 -4 -4 -3 -3 -3 -2 -2 -2 -1 -1 ------- Run | Yrd Mat Sub Mat Gar Mat Gar Mat Gar Fac Gar Fac Sto Gar Rec Fac Was Fac Upp Upp Fac Upp Upp Zhi Pro Res Tes Res Qua Frg Acc Com Maximum Alert Level 5 | . . . 2 4 2 4 2 4 2 2 1 1 4 2 . . . . . . . . . . . 2 2 1 5 4 4 Low Security (%) 40 | 100 100 . 21 . . . . . 82 15 . 61 7 79 100 100 100 . . 100 . . . . 100 64 11 39 26 . . Level 1 19 | . . . 45 15 10 24 . . 8 53 100 38 8 12 . . . . . . . . . . . 9 51 60 5 . . Level 2 20 | . . . 33 21 89 17 100 29 9 30 . . 50 7 . . . . . . . . . . . 25 36 . 18 . . Level 3 11 | . . . . 57 . 10 . 51 . . . . 32 . . . . . . . . . . . . . . . 5 . 96 Level 4 6 | . . . . 6 . 47 . 18 . . . . 1 . . . . . . . . . . . . . . . 15 100 3 Level 5 2 | . . . . . . . . . . . . . . . . . . . . . . . . . . . . . 28 . . High Security . | . . . . . . . . . . . . . . . . . . . . . . . . . . . . . . . . Max Security . | . . . . . . . . . . . . . . . . . . . . . . . . . . . . . . . . Peak Influence 2523 | 5 77 . 468 1123 547 1278 643 1249 655 418 260 301 1175 528 154 7 80 . . 87 . . . . 44 505 456 245 2523 1546 1100 Initial 1510 | . . . . 283 547 201 622 411 655 . 219 91 172 528 14 7 . . . . . . . . . . 260 245 114 1510 988 Average 415 | . 21 . 312 724 489 836 609 852 156 273 226 156 635 107 58 . 15 . . 8 . . . . 9 171 324 203 992 1506 1063 Influence Increases 14463 | 10 251 20 1216 850 13 1237 71 998 327 418 71 325 1223 126 414 . 205 5 265 241 128 195 15 30 117 917 690 396 3260 116 313 Destroy 0b10 Robot/C 7700 | . 160 20 720 420 . 600 20 520 160 . 40 200 640 . 260 . 100 . 80 100 100 120 . 20 60 480 420 220 2120 . 120 Destroy 0b10 Robot/NC 425 | 10 20 . 45 . 5 . 5 . 45 5 . 5 10 5 10 . 15 5 10 15 5 20 15 . 10 45 15 10 85 5 5 Destroy Leader 1128 | . 34 . 180 30 2 40 10 40 62 . 10 30 40 . 50 . 20 . 10 42 10 10 . 10 12 74 90 30 250 2 40 Allied During Kill 720 | . . . . 17 1 386 6 16 20 1 20 47 103 1 31 . . . . 21 13 . . . . 24 . . 13 . . Trap Triggered on 0b10 10 | . . . . 10 . . . . . . . . . . . . . . . . . . . . . . . . . . . Successful Hack 282 | . 22 . 34 14 5 . . 14 24 12 . . . 12 . . . . . 9 . . . . . 48 . 31 . 21 36 Disable Machine 900 | . . . 60 . . . 30 45 15 . . 30 . 105 30 . 15 . . 30 . . . . 15 135 15 45 285 15 30 Anti-Garrison Action 1400 | . . . . 250 . 150 . 300 . 400 . . 300 . . . . . . . . . . . . . . . . . . Destroy Structure 1028 | . . . 87 79 . 46 . 18 1 . 1 13 40 3 18 . 10 . . 24 . . . . 20 36 120 15 387 73 37 Partial Spotted 30 | . . . . . . . . . . . . . . . . . . . . . . . . . . . 15 . 15 . . Lose Combat Pursuer 840 | . 15 . 90 30 . 15 . 45 . . . . 90 . 15 . 45 . 165 . . 45 . . . 75 15 45 105 . 45 Influence Decreases 13422 | 10 214 57 780 163 826 269 716 382 1576 . 289 259 314 1267 428 20 186 24 265 241 128 195 15 30 117 454 717 627 947 1088 818 Entered New Map 5469 | . . 18 . 153 576 109 656 222 594 . 199 109 94 647 20 13 . 8 . . . . . . . . 203 191 91 1008 558 Time Decay 5749 | 10 214 39 610 . 100 . 60 . 498 . 70 90 . 450 358 7 186 16 245 201 108 195 15 30 117 394 494 416 656 80 90 Lost Part 510 | . . . 20 10 . . . 40 20 . . . 60 . 10 . . . 20 . . . . . . 20 . . 140 . 170 Lost Ally 869 | . . . . . . 160 . 120 89 . 20 60 160 20 40 . . . . 40 20 . . . . 40 20 20 60 . . Purge Threat 825 | . . . 150 . 150 . . . 375 . . . . 150 . . . . . . . . . . . . . . . . . Squads Dispatched 59 | . 1 . 7 . 2 . 2 . 5 . . 3 . . 2 . 1 . . 2 . . . . . 6 6 2 18 1 1 Investigation 7 | . . . 4 . 2 . 1 . . . . . . . . . . . . . . . . . . . . . . . . Extermination 18 | . . . . . . . . . 2 . . . . . 1 . 1 . . 2 . . . . . 2 3 2 5 . . Reinforcement 16 | . 1 . 2 . . . . . 2 . . . . . 1 . . . . . . . . . . 3 3 . 3 1 . Assault 14 | . . . 1 . . . . . . . . 2 . . . . . . . . . . . . . 1 . . 9 . 1 Garrison 4 | . . . . . . . 1 . 1 . . 1 . . . . . . . . . . . . . . . . 1 . . Intercept . | . . . . . . . . . . . . . . . . . . . . . . . . . . . . . . . . Searches Triggered . | . . . . . . . . . . . . . . . . . . . . . . . . . . . . . . . . Unchained Authorized 1 | . . . . . . . . . . . . . . . . . . . . . . . . . . . . . . 1 . Construction Impeded 2 | . . . . . . . . . . . . . . . . . . . . . . . . . . . . . 2 . . Haulers Reinforced 3 | . . . . . . . . . 1 . . . . . 1 . . . . . . . . . . 1 . . . . . Active Scanning Responses . | . . . . . . . . . . . . . . . . . . . . . . . . . . . . . . . . Cargo Convoy Interrupts 1 | . . . . . . . . . 1 . . . . . . . . . . . . . . . . . . . . . . Stealth | -11 -10 -10 -8 -8 -8 -8 -8 -8 -7 -7 -7 -7 -7 -7 -5 -5 -5 -5 -5 -4 -4 -4 -4 -3 -3 -3 -2 -2 -2 -1 -1 --------- Run | Yrd Mat Sub Mat Gar Mat Gar Mat Gar Fac Gar Fac Sto Gar Rec Fac Was Fac Upp Upp Fac Upp Upp Zhi Pro Res Tes Res Qua Frg Acc Com Distress Signals 11 | . 2 . 2 . . . . . . . 1 1 . 2 . . . . . . . . . . . 1 . . 1 . 1 Communications Jammed 61 | . . . . . . . . . . . . . . . 11 . . . . . . . . . . . 2 . 48 . . Distress Signals 61 | . . . . . . . . . . . . . . . 11 . . . . . . . . . . . 2 . 48 . . Times Spotted 591 | . 15 10 62 28 2 16 2 30 39 . 3 13 47 4 16 3 7 . 26 6 7 9 . 1 4 37 26 18 132 3 25 Peak Tracking Total 16 | . 5 2 8 11 2 4 1 5 12 . 3 6 5 1 4 2 3 . 8 3 5 3 . 1 2 7 4 4 10 2 16 Tactical Retreats 41 | . 1 . 5 1 . 1 . 2 . . . . 3 . 1 . 2 . 5 . . 3 . . . 5 1 2 6 . 3 Traps | -11 -10 -10 -8 -8 -8 -8 -8 -8 -7 -7 -7 -7 -7 -7 -5 -5 -5 -5 -5 -4 -4 -4 -4 -3 -3 -3 -2 -2 -2 -1 -1 ------- Run | Yrd Mat Sub Mat Gar Mat Gar Mat Gar Fac Gar Fac Sto Gar Rec Fac Was Fac Upp Upp Fac Upp Upp Zhi Pro Res Tes Res Qua Frg Acc Com Traps Triggered 51 | . . . 2 8 . 4 . 10 . 2 . 1 7 . 4 . 1 . . . . . . . 2 . . 2 6 . 2 Indirectly 5 | . . . 1 . . . . . . . . . . . 3 . . . . . . . . . . . . . 1 . . Trap Hack Attempts . | . . . . . . . . . . . . . . . . . . . . . . . . . . . . . . . . Triggered . | . . . . . . . . . . . . . . . . . . . . . . . . . . . . . . . . Disarmed . | . . . . . . . . . . . . . . . . . . . . . . . . . . . . . . . . Reprogrammed . | . . . . . . . . . . . . . . . . . . . . . . . . . . . . . . . . Reused 6 | . . . . 1 . . . . . . . . . . . . . . 5 . . . . . . . . . . . . Traps Extracted 4 | . . . . . . . . . . . . . . . . . . . 2 . 2 . . . . . . . . . . Installed 9 | . . 1 . 1 . . . . . . . . . . . . . . 7 . . . . . . . . . . . . Triggered 6 | . . . . 1 . . . . . . . . . . . . . . 5 . . . . . . . . . . . . Most Traps Carried 8 | . . 1 1 1 . . . . . . . . . . . . . 8 8 3 5 5 5 5 5 5 . . . . . Machines | -11 -10 -10 -8 -8 -8 -8 -8 -8 -7 -7 -7 -7 -7 -7 -5 -5 -5 -5 -5 -4 -4 -4 -4 -3 -3 -3 -2 -2 -2 -1 -1 ---------- Run | Yrd Mat Sub Mat Gar Mat Gar Mat Gar Fac Gar Fac Sto Gar Rec Fac Was Fac Upp Upp Fac Upp Upp Zhi Pro Res Tes Res Qua Frg Acc Com Machines Disabled 86 | . . . 4 2 . 2 2 6 1 2 . 2 2 7 2 . 1 . 1 2 1 1 1 . 1 9 1 3 30 1 2 Max in Single Turn 3 | . . . 3 1 . 1 . 2 1 1 . 1 1 1 1 . 1 . 1 1 1 1 1 . 1 1 1 1 2 1 1 Garrison Access 6 | . . . . . . . . . . . . . . . . . 1 . . . . . . . . 1 1 1 1 1 . Garrison Relay 11 | . . . . 2 . 2 . 3 . 2 . . 2 . . . . . . . . . . . . . . . . . . Machines Repaired . | . . . . . . . . . . . . . . . . . . . . . . . . . . . . . . . . Machines Dismantled . | . . . . . . . . . . . . . . . . . . . . . . . . . . . . . . . . Machines Sabotaged . | . . . . . . . . . . . . . . . . . . . . . . . . . . . . . . . . Overloaded Fab Kills . | . . . . . . . . . . . . . . . . . . . . . . . . . . . . . . . . Hacking | -11 -10 -10 -8 -8 -8 -8 -8 -8 -7 -7 -7 -7 -7 -7 -5 -5 -5 -5 -5 -4 -4 -4 -4 -3 -3 -3 -2 -2 -2 -1 -1 --------- Run | Yrd Mat Sub Mat Gar Mat Gar Mat Gar Fac Gar Fac Sto Gar Rec Fac Was Fac Upp Upp Fac Upp Upp Zhi Pro Res Tes Res Qua Frg Acc Com Machines Accessed 100 | . 6 1 9 4 5 2 1 2 5 3 . 1 2 6 1 . 4 . 1 6 1 1 4 . 1 12 3 6 5 4 4 Terminals 63 | . 5 . 5 4 3 2 . 2 2 3 . . 2 3 1 . 3 . 1 3 . . . . 1 8 1 4 3 3 4 Fabricators 2 | . . . . . . . . . . . . . . . . . . . . 1 . . . . . 1 . . . . . Repair Stations 3 | . 1 . . . . . . . 1 . . . . . . . . . . . . . . . . . . . 1 . . Recycling Units 6 | . . . 2 . . . . . . . . . . 2 . . . . . 2 . . . . . . . . . . . Scanalyzers 7 | . . . 1 . 1 . . . 1 . . . . . . . . . . . . . . . . 2 1 1 . . . Garrison Access 11 | . . . 1 . 1 . 1 . 1 . . 1 . . . . 1 . . . . . . . . 1 1 1 1 1 . Total Hacks 214 | . 15 1 30 7 20 3 4 4 9 5 . 2 2 13 1 . 7 . 4 12 5 1 17 . 1 16 4 10 7 8 6 Successful 112 | . 8 1 17 3 6 . 2 1 3 1 . 1 . 8 . . 4 . 4 8 5 1 17 . . 7 2 5 3 3 2 Failed 101 | . 6 . 13 4 14 3 2 3 6 4 . 1 2 5 1 . 3 . . 4 . . . . 1 9 2 5 4 5 4 Catastrophic 28 | . 1 . 1 . 1 1 . 2 2 4 . 1 1 1 1 . 2 . . 3 . . . . 1 2 1 . 1 1 1 Database Lockouts 1 | . 1 . . . . . . . . . . . . . . . . . . . . . . . . . . . . . . Manual 56 | . 5 . 11 2 7 1 3 . . 1 . 1 2 7 1 . 1 . . 4 . . . . . 4 1 1 2 . 2 Terminals 122 | . 14 . 14 7 15 3 . 4 3 5 . . 2 7 1 . 5 . 4 6 . . . . 1 8 1 6 4 6 6 Fabricators 7 | . . . . . . . . . . . . . . . . . . . . 4 . . . . . 3 . . . . . Repair Stations 5 | . 1 . . . . . . . 3 . . . . . . . . . . . . . . . . . . . 1 . . Recycling Units 13 | . . . 7 . . . . . . . . . . 4 . . . . . 2 . . . . . . . . . . . Scanalyzers 17 | . . . 7 . 2 . . . 2 . . . . . . . . . . . . . . . . 3 1 2 . . . Garrison Access 24 | . . . 2 . 3 . 4 . 1 . . 2 . . . . 2 . . . . . . . . 2 2 2 2 2 . Terminal Hacks 63 | . 8 1 4 3 1 . . 1 1 1 . . . 4 . . 1 . 4 4 5 1 17 . . 3 . 1 1 1 1 Record 14 | . . . . . . . . . . . . . . . . . . . 4 . 5 . 5 . . . . . . . . Part Schematic 4 | . . . . . . . . . . . . . . . . . . . . . . . 4 . . . . . . . . Robot Analysis 7 | . 2 . 1 . . . . . . . . . . . . . . . . . . . 4 . . . . . . . . Prototype ID Bank 7 | . 3 . . . . . . . . . . . . . . . . . . . . . 4 . . . . . . . . Open Door 3 | . . . . 1 . . . . . . . . . . . . . . . . . 1 . . . 1 . . . . . Branch Access Points 2 | . . . . . . . . . . . . . . . . . . . . 1 . . . . . . . . . 1 . Emergency Access Points 1 | . . . . . . . . . . . . . . . . . . . . 1 . . . . . . . . . . . Terminal Index 1 | . . . . . . . . . . . . . . 1 . . . . . . . . . . . . . . . . . Scanalyzer Index 1 | . . . 1 . . . . . . . . . . . . . . . . . . . . . . . . . . . . Unreport Threat 3 | . . . 1 . 1 . . . . . . . . 1 . . . . . . . . . . . . . . . . . Locate Traps 5 | . 2 . . . . . . . 1 . . . . . . . 1 . . 1 . . . . . . . . . . . Registered Components 3 | . . . . . . . . . . . . . . . . . . . . 1 . . . . . . . 1 . . 1 Zone Layout 3 | . 1 . 1 . . . . . . . . . . . . . . . . . . . . . . 1 . . . . . Garrison Registry 3 | . . . . 1 . . . 1 . 1 . . . . . . . . . . . . . . . . . . . . . Patrol Navigation 1 | . . . . 1 . . . . . . . . . . . . . . . . . . . . . . . . . . . Proto ID Catalog 2 | . . 1 . . . . . . . . . . . . . . . . . . . . . . . . . . 1 . . Protovariant Controls 1 | . . . . . . . . . . . . . . . . . . . . . . . . . . 1 . . . . . Release Object 2 | . . . . . . . . . . . . . . 2 . . . . . . . . . . . . . . . . . Fabricator Hacks 1 | . . . . . . . . . . . . . . . . . . . . 1 . . . . . . . . . . . Network Status 1 | . . . . . . . . . . . . . . . . . . . . 1 . . . . . . . . . . . Repair Station Hacks . | . . . . . . . . . . . . . . . . . . . . . . . . . . . . . . . . Recycling Unit Hacks 7 | . . . 4 . . . . . . . . . . 2 . . . . . 1 . . . . . . . . . . . Process 2 | . . . 2 . . . . . . . . . . . . . . . . . . . . . . . . . . . . Retrieve Matter 2 | . . . 2 . . . . . . . . . . . . . . . . . . . . . . . . . . . . Retrieve Components 3 | . . . . . . . . . . . . . . 2 . . . . . 1 . . . . . . . . . . . Scanalyzer 11 | . . . 6 . 2 . . . 1 . . . . . . . . . . . . . . . . . . 2 . . . Retrieve Study 11 | . . . 6 . 2 . . . 1 . . . . . . . . . . . . . . . . . . 2 . . . Garrison Access Hacks 17 | . . . 1 . 1 . 1 . 1 . . 1 . . . . 2 . . . . . . . . 2 2 2 2 2 . Unlock Access 5 | . . . 1 . 1 . 1 . 1 . . 1 . . . . . . . . . . . . . . . . . . . Seal Access 6 | . . . . . . . . . . . . . . . . . 1 . . . . . . . . 1 1 1 1 1 . Coupler Status 6 | . . . . . . . . . . . . . . . . . 1 . . . . . . . . 1 1 1 1 1 . Unauthorized Hacks 13 | . . . 2 . 2 . 1 . . . . . . 2 . . 1 . . 2 . . . . . 2 . . . . 1 Terminals 8 | . . . 1 . 1 . . . . . . . . 2 . . 1 . . . . . . . . 2 . . . . 1 Assimilate 2 | . . . . . . . . . . . . . . . . . . . . . . . . . . 2 . . . . . Botnet 5 | . . . 1 . 1 . . . . . . . . 1 . . 1 . . . . . . . . . . . . . 1 Skim 1 | . . . . . . . . . . . . . . 1 . . . . . . . . . . . . . . . . . Fabricators 2 | . . . . . . . . . . . . . . . . . . . . 2 . . . . . . . . . . . Liberate 1 | . . . . . . . . . . . . . . . . . . . . 1 . . . . . . . . . . . Haulers 1 | . . . . . . . . . . . . . . . . . . . . 1 . . . . . . . . . . . Repair Stations . | . . . . . . . . . . . . . . . . . . . . . . . . . . . . . . . . Recycling Units . | . . . . . . . . . . . . . . . . . . . . . . . . . . . . . . . . Scanalyzers . | . . . . . . . . . . . . . . . . . . . . . . . . . . . . . . . . Garrison Access 3 | . . . 1 . 1 . 1 . . . . . . . . . . . . . . . . . . . . . . . . Reprogram 3 | . . . 1 . 1 . 1 . . . . . . . . . . . . . . . . . . . . . . . . Data Cores Recovered 4 | . . . . . . . 1 . . . . . . . . . . . . 1 . . . . . . . 1 . . 1 Used 1 | . . . . . . . . . . . . . . . . . . . . 1 . . . . . . . . . . . Hacking Detections 61 | . 3 . 5 2 3 1 1 1 4 2 . 1 . 1 1 . 4 . 1 5 . . . . 1 9 1 6 3 3 3 Full Trace Events 8 | . . . 1 1 2 1 . 1 . 2 . . . . . . . . . . . . . . . . . . . . . Feedback Events . | . . . . . . . . . . . . . . . . . . . . . . . . . . . . . . . . Feedback Blocked . | . . . . . . . . . . . . . . . . . . . . . . . . . . . . . . . . Robot Schematics Acquired 4 | . . . . . . . . . . . . . . . . . . . . . . . . . . 2 . . 2 . . Robots Built . | . . . . . . . . . . . . . . . . . . . . . . . . . . . . . . . . Authchips . | . . . . . . . . . . . . . . . . . . . . . . . . . . . . . . . . Time . | . . . . . . . . . . . . . . . . . . . . . . . . . . . . . . . . Total Robot Build Rating . | . . . . . . . . . . . . . . . . . . . . . . . . . . . . . . . . Part Schematics Acquired 15 | . . . . . . . . . . . . . . . . . . . . . . . 4 . . 4 . 2 5 . . Parts Built . | . . . . . . . . . . . . . . . . . . . . . . . . . . . . . . . . Authchips . | . . . . . . . . . . . . . . . . . . . . . . . . . . . . . . . . Time . | . . . . . . . . . . . . . . . . . . . . . . . . . . . . . . . . Total Part Build Rating . | . . . . . . . . . . . . . . . . . . . . . . . . . . . . . . . . Part Studies Acquired 11 | . . . 6 . 2 . . . 1 . . . . . . . . . . . . . . . . . . 2 . . . Parts Repaired . | . . . . . . . . . . . . . . . . . . . . . . . . . . . . . . . . Time . | . . . . . . . . . . . . . . . . . . . . . . . . . . . . . . . . Parts Recycled . | . . . . . . . . . . . . . . . . . . . . . . . . . . . . . . . . Recycled Matter 243 | . . . 243 . . . . . . . . . . . . . . . . . . . . . . . . . . . . Retrieved Matter 305 | . . . 305 . . . . . . . . . . . . . . . . . . . . . . . . . . . . Retrieved Components 7 | . . . . . . . . . . . . . . 6 . . . . . 1 . . . . . . . . . . . Parts Scanalyzed . | . . . . . . . . . . . . . . . . . . . . . . . . . . . . . . . . Part Schematics Acquired . | . . . . . . . . . . . . . . . . . . . . . . . . . . . . . . . . Parts Damaged . | . . . . . . . . . . . . . . . . . . . . . . . . . . . . . . . . Bothacking | -11 -10 -10 -8 -8 -8 -8 -8 -8 -7 -7 -7 -7 -7 -7 -5 -5 -5 -5 -5 -4 -4 -4 -4 -3 -3 -3 -2 -2 -2 -1 -1 ------------ Run | Yrd Mat Sub Mat Gar Mat Gar Mat Gar Fac Gar Fac Sto Gar Rec Fac Was Fac Upp Upp Fac Upp Upp Zhi Pro Res Tes Res Qua Frg Acc Com Used RIF Installer 6 | . . . . 1 . 2 . 1 . 1 . . 1 . . . . . . . . . . . . . . . . . . Hotswap 1 | . . . . . . . . 1 . . . . . . . . . . . . . . . . . . . . . . . Signal Jammer 1 | . . . . . . . . . . . . . 1 . . . . . . . . . . . . . . . . . . Zone Cloak 1 | . . . . . . 1 . . . . . . . . . . . . . . . . . . . . . . . . . Watcher Feeds 1 | . . . . . . 1 . . . . . . . . . . . . . . . . . . . . . . . . . Program Shield 1 | . . . . . . . . . . 1 . . . . . . . . . . . . . . . . . . . . . Robots Hacked 38 | . . . . . . . . 2 11 . . . 13 . . . . . 1 . . . 3 . . . 1 2 5 . . Non-combat 7 | . . . . . . . . . 5 . . . 1 . . . . . . . . . . . . . . 1 . . . Combat 31 | . . . . . . . . 2 6 . . . 12 . . . . . 1 . . . 3 . . . 1 1 5 . . Robot Hacks Applied 42 | . . . . . . . . 2 14 . . . 14 . . . . . 1 . . . 3 . . . 1 2 5 . . parse_system 5 | . . . . . . . . . 1 . . . . . . . . . 1 . . . 3 . . . . . . . . drop_inventory 3 | . . . . . . . . . 2 . . . . . . . . . . . . . . . . . . 1 . . . purge_threat 3 | . . . . . . . . . 3 . . . . . . . . . . . . . . . . . . . . . . redirect_shields 1 | . . . . . . . . . 1 . . . . . . . . . . . . . . . . . . . . . . disable_scanner 4 | . . . . . . . . . . . . . . . . . . . . . . . . . . . . . 4 . . amplify_resonance 2 | . . . . . . . . . . . . . 2 . . . . . . . . . . . . . . . . . . wipe_record 1 | . . . . . . . . . . . . . 1 . . . . . . . . . . . . . . . . . . reboot_system 1 | . . . . . . . . . 1 . . . . . . . . . . . . . . . . . . . . . . overwrite_iff 5 | . . . . . . . . . . . . . 4 . . . . . . . . . . . . . . . 1 . . streamctrl_high 1 | . . . . . . . . . . . . . 1 . . . . . . . . . . . . . . . . . . formatsys_low 3 | . . . . . . . . . 1 . . . 1 . . . . . . . . . . . . . . 1 . . . formatsys_high 13 | . . . . . . . . 2 5 . . . 5 . . . . . . . . . . . . . 1 . . . . Relay Couplers Released 60 | . . . . 9 . 12 . 11 4 10 . . 7 . . . . . . . . . . . . 2 2 3 . . . Machine Destruction 52 | . . . . 9 . 8 . 11 . 10 . . 7 . . . . . . . . . . . . 2 2 3 . . . Programmers 8 | . . . . . . 4 . . 4 . . . . . . . . . . . . . . . . . . . . . . Attached 23 | . . . . . . . . 2 4 3 . . 10 . . . . . . . . . . . . . 2 . 2 . . Fabnet Peak Effective % . | . . . . . . . . . . . . . . . . . . . . . . . . . . . . . . . . Robots Rewired 20 | . . . . . . 6 . . . 3 . . 7 . . . 1 . 2 . . . . . . 1 . . . . . Allies Hacked 9 | . . . . . . . . 3 1 . . . 1 . 4 . . . . . . . . . . . . . . . . Hacks Repelled . | . . . . . . . . . . . . . . . . . . . . . . . . . . . . . . . . Allies | -11 -10 -10 -8 -8 -8 -8 -8 -8 -7 -7 -7 -7 -7 -7 -5 -5 -5 -5 -5 -4 -4 -4 -4 -3 -3 -3 -2 -2 -2 -1 -1 -------- Run | Yrd Mat Sub Mat Gar Mat Gar Mat Gar Fac Gar Fac Sto Gar Rec Fac Was Fac Upp Upp Fac Upp Upp Zhi Pro Res Tes Res Qua Frg Acc Com Total Allies 64 | . . . 1 2 3 6 2 4 6 5 . 2 18 . . . 1 . 2 3 3 . . . . 3 1 1 1 . . Largest Group 10 | . . . 1 2 5 10 3 3 3 5 5 6 6 5 4 1 1 . 2 3 3 . . . . 2 1 1 1 . . Highest-Rated Group 293 | . . . 40 51 99 293 72 51 79 160 160 210 113 113 92 12 49 . 62 141 138 . . . . 71 48 62 148 . . Highest-Rated Ally 148 | . . . 40 31 31 40 39 31 32 62 62 62 32 30 30 12 49 . 31 47 47 . . . . 71 48 62 148 . . Total Orders 25 | . . . . . . . . . 3 . . . 3 3 5 . . . . 3 . . . . . 3 . 2 3 . . STAY 11 | . . . . . . . . . 2 . . . 1 . 3 . . . . 3 . . . . . 2 . . . . . ROAM 1 | . . . . . . . . . . . . . . . . . . . . . . . . . . . . 1 . . . FOLLOW 6 | . . . . . . . . . 1 . . . 1 1 1 . . . . . . . . . . 1 . 1 . . . AID 4 | . . . . . . . . . . . . . 1 2 1 . . . . . . . . . . . . . . . . RETURN 3 | . . . . . . . . . . . . . . . . . . . . . . . . . . . . . 3 . . Ally Attacks 410 | . . . . 7 1 131 7 16 32 . 12 41 44 12 8 2 1 . 13 21 14 . . . . 5 3 1 39 . . Total Damage 9103 | . . . . 147 34 2346 220 318 1221 . 142 1553 747 358 217 65 . . 172 416 350 . . . . . 132 . 665 . . Kills 80 | . . . . 2 1 27 2 4 11 . 2 11 6 3 3 . . . . 4 2 . . . . . . . 2 . . Allies Corrupted 1 | . . . . . . . . . . . . . . . . . 1 . . . . . . . . . . . . . . Allies Melted 1 | . . . . . . . . . . . . . . . . . . . . . . . . . . . 1 . . . . Intel | -11 -10 -10 -8 -8 -8 -8 -8 -8 -7 -7 -7 -7 -7 -7 -5 -5 -5 -5 -5 -4 -4 -4 -4 -3 -3 -3 -2 -2 -2 -1 -1 ------- Run | Yrd Mat Sub Mat Gar Mat Gar Mat Gar Fac Gar Fac Sto Gar Rec Fac Was Fac Upp Upp Fac Upp Upp Zhi Pro Res Tes Res Qua Frg Acc Com Active Infowar (turns) 28718 | . . 1985 3237 1580 215 1153 135 1477 1358 887 157 189 1826 756 921 197 786 403 1588 1181 1609 1155 374 412 418 1120 1317 1012 945 171 154 Optics 25264 | . . . 2783 1580 215 1153 135 1477 1358 887 157 189 1826 756 921 197 786 403 1588 1181 1609 1155 374 412 418 1120 1317 1012 255 . . Sensors 5451 | . . . . . . . . . . . . . . . . . . 284 1179 183 1476 824 56 335 323 543 248 . . . . Structural 577 | . . . 577 . . . . . . . . . . . . . . . . . . . . . . . . . . . . Traps 1062 | . . . . . . . . . . . . . . . . . . . . . . . . . . 8 1 351 702 . . Seismic 4892 | . . 1985 2293 82 . 288 135 109 . . . . . . . . . . . . . . . . . . . . . . . Decoding 2 | . . . . . . . . . . . . . . . . . . . . . 2 . . . . . . . . . . Triangulation 1 | . . . . . . . . . . . . . . . . . . . . 1 . . . . . . . . . . . Cloaking 545 | . . . . . . . . . . . . . . . . . . . . . . . . . . . . . 220 171 154 Jamming 53 | . . . . . . . . . . . . . . . . . . . . . . . . . . . . . 53 . . Robot Analysis Total 7 | . 2 . 1 . . . . . . . . . . . . . . . . . . . 4 . . . . . . . . Derelict Logs Recovered 9 | . . 3 . . . . . . . . . . . . . . . 1 1 . 2 2 . . . . . . . . . Drone Launches 5 | . . . . . . . . . . . . . . . . . . . . . . . . . . . . . 5 . . Drone Recoveries 1 | . . . . . . . . . . . . . . . . . . . . . . . . . . . . . 1 . . Exploration | -11 -10 -10 -8 -8 -8 -8 -8 -8 -7 -7 -7 -7 -7 -7 -5 -5 -5 -5 -5 -4 -4 -4 -4 -3 -3 -3 -2 -2 -2 -1 -1 ------------- Run | Yrd Mat Sub Mat Gar Mat Gar Mat Gar Fac Gar Fac Sto Gar Rec Fac Was Fac Upp Upp Fac Upp Upp Zhi Pro Res Tes Res Qua Frg Acc Com Turns Passed 33455 | 117 713 3124 3237 1580 215 1153 135 1477 1358 887 157 189 1826 1774 991 197 786 403 1588 1181 1609 1155 374 412 418 1120 1317 1012 2450 171 329 Spaces Moved 18225 | 57 329 1056 1236 658 104 444 58 539 582 533 107 61 893 1053 525 158 393 344 1132 750 795 682 188 391 409 1009 573 512 1911 298 445 Core 22 | 2 . . . . . . . . 13 7 . . . . . . . . . . . . . . . . . . . . . Treads 5829 | 55 329 1033 912 658 104 444 58 539 569 . . . . 111 39 . . . 337 445 79 117 . . . . . . . . . Legs 6484 | . . . . . . . . . . 526 107 61 893 942 419 . . . 680 . 186 520 56 391 409 387 573 328 6 . . Wheels 652 | . . 23 324 . . . . . . . . . . . . . . . . 305 . . . . . . . . . . . Hover 2305 | . . . . . . . . . . . . . . . 67 158 393 344 115 . 113 . . . . 98 . 21 996 . . Flight 2933 | . . . . . . . . . . . . . . . . . . . . . 417 45 132 . . 524 . 163 909 298 445 Fastest Speed 36 | 50 160 155 155 200 200 216 216 200 50 50 140 140 140 120 94 94 94 98 91 91 66 76 76 76 52 36 90 100 38 38 38 Average Speed 132 | 156 184 238 194 200 202 216 216 206 197 145 140 140 140 137 150 94 150 100 91 104 108 124 76 76 66 63 125 136 74 38 38 Slowest Speed 320 | 160 240 320 215 200 216 216 216 216 200 190 140 140 140 208 159 94 165 165 98 160 160 128 76 76 76 157 182 182 199 38 38 Overloaded Moves . | . . . . . . . . . . . . . . . . . . . . . . . . . . . . . . . . Propulsion Burnouts . | . . . . . . . . . . . . . . . . . . . . . . . . . . . . . . . . Robots Hopped 7 | . . . . . . . . . . . . . . . . . . . . . . . . . . . . . 3 . 4 Potential Cave-ins 23 | . . . . . . . . . . . . . . . . . . . . . . . . . . . 2 . 19 . 2 Cave-ins Triggered 1 | . . . . . . . . . . . . . . . . . . . . . . . . . . . . . 1 . . Teleports 1 | . . . . . . . . . . . . . . . . . . . . . . . . . . . . . 1 . . Exploration Rate (%) 49 | 3 76 63 89 79 17 63 10 60 23 69 6 28 68 97 18 81 12 56 87 15 67 78 61 64 10 88 32 69 39 12 28 Regions Visited 31 Branch Regions 13 Pre-discovered Areas 7 | . . 1 . . . . . . . . . . . . . . . . . . 2 1 3 . . . . . . . . Known Exits Taken 17 | . . . 1 . 1 . 1 . 1 . . 1 . . . . 1 1 1 1 1 1 1 1 1 1 1 . . 1 . Unknown Exits Taken 7 | 1 1 1 . . . . . . . . 1 . . 1 . . . . . . . . . . . . . 1 1 . . Scrap Searched 12 | . . . . . . . . . . . . . . . . . . 2 4 . 3 2 . 1 . . . . . . . Spaces Dug 170 | . . . 33 . . . . 2 . . . . . . . . 5 1 5 8 18 9 . 3 8 8 35 1 11 12 11 Terrain Destroyed 427 | . . . 115 33 . 10 . 3 . . . . 7 3 8 . 5 1 20 13 18 20 . 6 10 17 46 5 59 14 14 Melee 93 | . . . 1 . . . . . . . . . . . . . 5 1 3 3 18 4 . 2 7 6 23 1 9 7 3 Projectile 162 | . . . 6 . . . . . . . . . 7 3 . . . . 15 10 . 16 . 4 3 11 23 4 42 7 11 AOE 172 | . . . 108 33 . 10 . 3 . . . . . . 8 . . . 2 . . . . . . . . . 8 . . Terrain Rammed . | . . . . . . . . . . . . . . . . . . . . . . . . . . . . . . . . Walls Destroyed . | . . . . . . . . . . . . . . . . . . . . . . . . . . . . . . . . Machines Disabled . | . . . . . . . . . . . . . . . . . . . . . . . . . . . . . . . . Actions | -11 -10 -10 -8 -8 -8 -8 -8 -8 -7 -7 -7 -7 -7 -7 -5 -5 -5 -5 -5 -4 -4 -4 -4 -3 -3 -3 -2 -2 -2 -1 -1 --------- Run | Yrd Mat Sub Mat Gar Mat Gar Mat Gar Fac Gar Fac Sto Gar Rec Fac Was Fac Upp Upp Fac Upp Upp Zhi Pro Res Tes Res Qua Frg Acc Com Total 25542 | 74 392 1540 1894 823 109 615 65 781 735 632 114 153 1293 1332 652 184 527 387 1613 1082 1456 916 395 495 525 1374 1060 793 2632 333 566 Wait 4247 | 1 14 395 406 32 3 91 6 89 57 2 7 86 159 202 27 7 51 19 321 244 574 165 170 86 55 169 341 203 217 9 39 Move 18181 | 56 328 1055 1235 657 103 443 57 538 582 532 106 61 892 1052 525 157 392 343 1131 749 794 681 187 390 408 1008 572 511 1903 297 436 Hop 6 | . . . . . . . . . . . . . . . . . . . . . . . . . . . . . 2 . 4 Pick Up 246 | 7 7 12 35 9 . 7 . 12 7 5 . . 5 7 8 1 8 5 10 11 4 3 4 . 5 15 11 10 33 2 3 Fast Attach 198 | 6 6 . 12 2 1 . . 2 5 17 1 1 24 7 7 2 4 2 6 10 10 1 4 4 8 16 1 4 27 1 7 Attach 85 | . . 7 8 1 . 2 . 3 7 1 . . 2 1 4 2 2 1 4 . . . . . 1 2 4 2 19 2 10 Detach 85 | . 2 1 8 . . . . . 3 . . . 5 10 5 2 5 2 5 1 2 . 1 . 1 7 1 4 16 1 3 Swap 344 | . . 17 38 31 1 14 . 26 19 3 . . 27 . 2 1 3 3 4 5 4 6 6 3 8 16 26 12 55 6 8 Drop 313 | . 8 1 39 11 1 6 . 13 7 14 . . 19 18 11 1 14 2 13 14 12 4 6 4 14 28 8 13 27 1 4 Fire 1141 | 4 21 51 99 51 . 9 2 69 29 9 . 5 105 9 46 11 8 3 55 26 . 30 3 6 12 61 66 27 269 6 49 Melee 391 | . . . 5 12 . 5 . 6 12 . . . . 26 17 . 40 7 11 22 56 26 14 2 13 39 26 6 35 8 3 Ram 1 | . . . . . . . . . . . . . . . . . . . . . . . . . . . . . 1 . . Kick 1 | . . . . . . . . . . . . . . . . . . . . . . . . . . . 1 . . . . Crush 20 | . 6 . 7 . . . . . 7 . . . . . . . . . . . . . . . . . . . . . . Escape Stasis 87 | . . . . 14 . 8 . 20 . . . . 4 . . . . . . . . . . . . 13 . . 28 . . Rewire 175 | . . . . 1 . 29 . . . 48 . . 49 . . . . . 46 . . . . . . . 1 1 . . . Trap 9 | . . 1 . 1 . . . . . . . . . . . . . . 7 . . . . . . . . . . . . Miscellaneous 12 | . . . 2 1 . 1 . 3 . 1 . . 2 . . . . . . . . . . . . . 2 . . . . Route ------- -11/Scrapyard -10/Materials (discovered 3 exits: [*Mat] / [*Min] / *Sub) -10/Subcaves -8/Materials (discovered 3 exits: *Fac x2 / Gar) -8/Garrison (discovered 3 exits: *Mat x3) -8/Materials -8/Garrison (discovered 2 exits: *Fac / *Mat) -8/Materials -8/Garrison (discovered 3 exits: *Fac x3) -7/Factory (discovered 2 exits: [*Fac] / Gar) -7/Garrison (discovered 3 exits: *Fac x3) -7/Factory -7/Storage -7/Garrison (discovered 3 exits: *Rec x3) -7/Recycling -5/Factory -5/Waste -5/Factory -5/Upper Caves -5/Upper Caves (discovered 2 exits: *Fac / *War) -4/Factory (discovered 4 exits: *Res x2 / *Upp x2) -4/Upper Caves -4/Upper Caves (discovered 2 exits: *Res / *Zhi) -4/Zhirov -3/Proximity Caves -3/Research -3/Testing -2/Research (discovered 2 exits: *Acc / *Qua) -2/Quarantine (discovered 2 exits: [*Sec] / *Frg) -2/Protoforge -1/Access -1/Command To Epsilon Eridani History --------- Turn | Location | Event 6 | -11/Scrapyard | Discovered new exit (range 15) 118 | -11/Scrapyard | Entered Materials 170 | -10/Materials | Central database locked down 274 | -10/Materials | Discovered new exit (range 15) 319 | -10/Materials | Build established: Mutant 542 | -10/Materials | Discovered new exit (range 12) 815 | -10/Materials | Discovered new exit (range 5) 831 | -10/Materials | Entered Subcaves 1608 | -10/Subcaves | Discovered new exit (range 9) 1823 | -10/Subcaves | Lost 3 parts (1p1n1u) 1942 | -10/Subcaves | Learned Materials terminal intel 2108 | -10/Subcaves | Learned Materials terminal intel 2297 | -10/Subcaves | Learned location of Zion (-6) 2367 | -10/Subcaves | Core integrity fell below 50% 2849 | -10/Subcaves | Visited 4L-MR0's lab 3955 | -10/Subcaves | Entered Materials 3955 | -8/Materials | Evolved 4 slots: Propulsion x1, Utility x3 3956 | -8/Materials | Loaded intel: 12 terminal locations 4372 | -8/Materials | Build established: Scavenger-Mutant 4740 | -8/Materials | Destroyed 11 combat bots 5506 | -8/Materials | Discovered new exit (range 11) 6559 | -8/Materials | Discovered new exit (range 16) 6815 | -8/Materials | Build established: Mutant 7086 | -8/Materials | Identified exit to Garrison 7155 | -8/Materials | First assault squad dispatched 7192 | -8/Materials | Entered Garrison 7199 | -8/Garrison | Triggered checkpoint 7423 | -8/Garrison | Triggered checkpoint 7856 | -8/Garrison | Garrison Relay disabled 7941 | -8/Garrison | Discovered new exit (range 17) 8225 | -8/Garrison | Discovered new exit (range 11) 8240 | -8/Garrison | Rescued a captive Derelict 8242 | -8/Garrison | Rescued a captive Derelict 8470 | -8/Garrison | Triggered checkpoint 8541 | -8/Garrison | Discovered new exit (range 66) 8541 | -8/Garrison | Discovered new exit (range 56) 8541 | -8/Garrison | Discovered new exit (range 19) 8599 | -8/Garrison | Installed Relay Interface Framework 8640 | -8/Garrison | Triggered checkpoint 8676 | -8/Garrison | Garrison Relay disabled 8772 | -8/Garrison | Entered Materials 8772 | -8/Materials | Accompanied by 2 allies 8773 | -8/Materials | Loaded intel: 12 terminal locations 8940 | -8/Materials | Identified exit to Garrison 8987 | -8/Materials | Entered Garrison 8987 | -8/Garrison | Accompanied by 5 allies 9027 | -8/Garrison | Triggered checkpoint 9060 | -8/Garrison | Discovered new exit (range 5) 9205 | -8/Garrison | Triggered checkpoint 9268 | -8/Garrison | Garrison Relay disabled 9437 | -8/Garrison | Triggered checkpoint 9445 | -8/Garrison | Triggered checkpoint 9507 | -8/Garrison | Triggered checkpoint 9647 | -8/Garrison | Triggered checkpoint 9685 | -8/Garrison | Discovered new exit (range 12) 9703 | -8/Garrison | Expanded RIF knowledge: Zone Cloak 9800 | -8/Garrison | Expanded RIF knowledge: Watcher Feeds 9845 | -8/Garrison | Garrison Relay disabled 9873 | -8/Garrison | Build established: Bothacker-Mutant 10140 | -8/Garrison | Entered Materials 10140 | -8/Materials | Accompanied by 3 allies 10180 | -8/Materials | Identified exit to Garrison 10250 | -8/Materials | Garrison activated, responded to threat 10275 | -8/Materials | Entered Garrison 10275 | -8/Garrison | Accompanied by 3 allies 10358 | -8/Garrison | Lost 3 allies 10431 | -8/Garrison | Triggered checkpoint 10476 | -8/Garrison | Lost 3 parts (1n1u1w) 10476 | -8/Garrison | Garrison Relay disabled 10584 | -8/Garrison | Triggered checkpoint 10674 | -8/Garrison | Core integrity fell below 50% 10713 | -8/Garrison | Rescued a captive Derelict 10715 | -8/Garrison | Rescued a captive Derelict 10758 | -8/Garrison | P-60 Hacker assimilated allied GC-SU5(g) 10877 | -8/Garrison | Discovered new exit (range 12) 10906 | -8/Garrison | Expanded RIF knowledge: Hotswap 10977 | -8/Garrison | Garrison Relay disabled 11181 | -8/Garrison | Build established: Botlord-Mutant 11205 | -8/Garrison | Discovered new exit (range 8) 11241 | -8/Garrison | Triggered checkpoint 11292 | -8/Garrison | Garrison Relay disabled 11395 | -8/Garrison | Triggered checkpoint 11491 | -8/Garrison | Triggered checkpoint 11555 | -8/Garrison | Discovered new exit (range 21) 11555 | -8/Garrison | Discovered new exit (range 40) 11555 | -8/Garrison | Discovered new exit (range 66) 11752 | -8/Garrison | Entered Factory 11752 | -7/Factory | Evolved 2 slots: Utility x1, Weapon x1 11803 | -7/Factory | Discovered new exit (range 30) 12472 | -7/Factory | Build established: Botlord-Gunner 12922 | -7/Factory | Build established: Bothacker-Gunner 13057 | -7/Factory | Cargo convoy interrupted 13064 | -7/Factory | Garrison activated, responded to threat 13098 | -7/Factory | System corruption reached 10% 13103 | -7/Factory | Core integrity fell below 50% 13105 | -7/Factory | Lost 3 allies 13110 | -7/Factory | Identified exit to Garrison 13110 | -7/Factory | Entered Garrison 13110 | -7/Garrison | Discovered recently destroyed garrison 13138 | -7/Garrison | Lost 14 parts (1p4n3u6w) 13263 | -7/Garrison | Expanded RIF knowledge: Program Shield 13367 | -7/Garrison | Garrison Relay disabled 13469 | -7/Garrison | Build established: Skirmisher 13664 | -7/Garrison | Garrison Relay disabled 13706 | -7/Garrison | Discovered new exit (range 13) 13871 | -7/Garrison | Discovered new exit (range 12) 13922 | -7/Garrison | Discovered new exit (range 51) 13922 | -7/Garrison | Discovered new exit (range 23) 13922 | -7/Garrison | Discovered new exit (range 32) 13948 | -7/Garrison | Found embedded Infiltrators 13950 | -7/Garrison | Build established: Gunner 13997 | -7/Garrison | Entered Factory 13997 | -7/Factory | Accompanied by 5 allies 14105 | -7/Factory | Discovered new exit (range 16) 14154 | -7/Factory | Entered Storage 14154 | -7/Storage | Accompanied by 4 allies 14160 | -7/Storage | Met a pair of Derelict thieves 14254 | -7/Storage | Garrison activated, responded to threat 14293 | -7/Storage | Lost 4 allies 14343 | -7/Storage | Identified exit to Garrison 14343 | -7/Storage | Entered Garrison 14469 | -7/Garrison | Triggered checkpoint 14532 | -7/Garrison | Triggered checkpoint 14650 | -7/Garrison | Triggered checkpoint 14722 | -7/Garrison | Garrison Relay disabled 14879 | -7/Garrison | Triggered checkpoint 14893 | -7/Garrison | Triggered checkpoint 14945 | -7/Garrison | Triggered checkpoint 15021 | -7/Garrison | P-60 Hacker assimilated allied Trooper 4e 15024 | -7/Garrison | P-60 Hacker assimilated allied Trooper 4f 15088 | -7/Garrison | Lost 3 allies 15223 | -7/Garrison | Discovered new exit (range 16) 15527 | -7/Garrison | Expanded RIF knowledge: Signal Jamming 15613 | -7/Garrison | Triggered checkpoint 15625 | -7/Garrison | Triggered checkpoint 15734 | -7/Garrison | Discovered new exit (range 17) 15860 | -7/Garrison | Core integrity fell below 20% 15964 | -7/Garrison | Discovered new exit (range 12) 15981 | -7/Garrison | Triggered checkpoint 16023 | -7/Garrison | Garrison Relay disabled 16165 | -7/Garrison | Build established: Commander-Tank 16169 | -7/Garrison | Entered Recycling 16169 | -7/Recycling | Accompanied by 5 allies 16408 | -7/Recycling | Discovered new exit (range 15) 16981 | -7/Recycling | Entered Scraplab 16987 | -7/Recycling | Found Prototype Device 16987 | -7/Recycling | Identified Scrap Engine 17247 | -7/Recycling | Build established: Commander-Mutant 17666 | -7/Recycling | Build established: Commander-Construct 17943 | -7/Recycling | Entered Factory 17943 | -5/Factory | Accompanied by 4 allies 17943 | -5/Factory | Evolved 4 slots: Power x1, Propulsion x1, Utility x1, Weapon x1 18248 | -5/Factory | Build established: Commander-Mutant 18432 | -5/Factory | P-70 Sage assimilated allied Smith 4a 18606 | -5/Factory | Build established: Mutant 18934 | -5/Factory | Sucked down chute 18934 | -5/Factory | Entered Waste 18943 | -5/Waste | Spotted C-40 Crusher 18949 | -5/Waste | EMP discharged 18949 | -5/Waste | System corruption reached 10% 18954 | -5/Waste | 1 allies followed down the chute 18961 | -5/Waste | Spotted C-40 Crusher 19049 | -5/Waste | EMP discharged 19051 | -5/Waste | Spotted C-40 Crusher 19073 | -5/Waste | Build established: Construct 19088 | -5/Waste | Spotted C-40 Crusher 19117 | -5/Waste | Spotted C-40 Crusher 19121 | -5/Waste | Discovered new exit (range 12) 19131 | -5/Waste | Entered Factory 19628 | -5/Factory | Discovered new exit (range 8) 19647 | -5/Factory | Identified exit to Upper Caves 19917 | -5/Factory | Entered Upper Caves 20100 | -5/Upper Caves | Learned 8 Factory zone layouts 20244 | -5/Upper Caves | Discovered new exit (range 13) 20264 | -5/Upper Caves | Identified exit to Upper Caves 20320 | -5/Upper Caves | Entered another Upper Caves area 20464 | -5/Upper Caves | Discovered new exit (range 2) 20464 | -5/Upper Caves | Identified exit to Factory 20553 | -5/Upper Caves | Encountered a Warlord checkpoint 20558 | -5/Upper Caves | Learned Factory trap positions 20668 | -5/Upper Caves | Attracted the attention of an 0b10 base 20883 | -5/Upper Caves | Learned Factory terminal intel 20883 | -5/Upper Caves | Learned Factory security intel 20883 | -5/Upper Caves | Learned Research stockpile data 20883 | -5/Upper Caves | Learned Extension trap positions 21007 | -5/Upper Caves | Attacked by a faux Warlord 21232 | -5/Upper Caves | Found DCF Scrap (16 items) 21462 | -5/Upper Caves | Discovered new exit (range 8) 21468 | -5/Upper Caves | Identified exit to Warlord 21908 | -5/Upper Caves | Entered Factory 21908 | -4/Factory | Accompanied by 2 allies 21908 | -4/Factory | Evolved 2 slots: Propulsion x2 21910 | -4/Factory | Loaded intel: 95 trap records 21912 | -4/Factory | Loaded intel: 26 terminal locations 21963 | -4/Factory | Identified exit to Upper Caves 22084 | -4/Factory | Discovered new exit (range 21) 22150 | -4/Factory | Identified exit to Research 22395 | -4/Factory | Build established: Mutant 22512 | -4/Factory | Discovered exit to Research (range 19) 22713 | -4/Factory | Build established: Construct 23089 | -4/Factory | Entered Upper Caves 23089 | -4/Upper Caves | Accompanied by 2 allies 23773 | -4/Upper Caves | Identified exit to Upper Caves 23840 | -4/Upper Caves | Entered an active Warlord outpost 23860 | -4/Upper Caves | A Commander dispatched an escort 23862 | -4/Upper Caves | Learned location of Armory (-3) 23862 | -4/Upper Caves | Learned 8 Factory zone layouts 24022 | -4/Upper Caves | Lost 4 allies 24093 | -4/Upper Caves | Destroyed 74-HXF(g) 24190 | -4/Upper Caves | Murdered 6 allies 24698 | -4/Upper Caves | Entered another Upper Caves area 24699 | -4/Upper Caves | Encountered a Warlord checkpoint 24729 | -4/Upper Caves | Discovered exit to Research (range 12) 24899 | -4/Upper Caves | Attracted the attention of an 0b10 checkpoint 25325 | -4/Upper Caves | Found Alien Artifact 25595 | -4/Upper Caves | Spotted B-86 Titan 25610 | -4/Upper Caves | Discovered new exit (range 2) 25644 | -4/Upper Caves | Identified exit to Zhirov 25711 | -4/Upper Caves | Learned location of Quarantine (-2) 25853 | -4/Upper Caves | Entered Zhirov 25853 | -4/Zhirov | Discovered new exit (range 3) 25867 | -4/Zhirov | Met Zhirov 25893 | -4/Zhirov | Learned location of Testing (-3) 25893 | -4/Zhirov | Learned location of Command (-1) 25897 | -4/Zhirov | Zhirov requested help retrieving the SGEMP Prototype 25909 | -4/Zhirov | Found Alien Artifact 25909 | -4/Zhirov | Identified Integrated Dissipator 25909 | -4/Zhirov | Installed Integrated Dissipator, increased core heat dissipation (+20) 26017 | -4/Zhirov | Found Alien Artifact 26226 | -4/Zhirov | Identified exit to Proximity Caves 26227 | -4/Zhirov | Entered Proximity Caves 26558 | -3/Proximity Caves | Discovered exit to Research (range 12) 26639 | -3/Proximity Caves | Entered Research 26639 | -3/Research | Evolved 2 slots: Power x1, Utility x1 26714 | -3/Research | Found Fusion Bomb Launcher 26975 | -3/Research | Discovered new exit (range 14) 26982 | -3/Research | Identified exit to Testing 27057 | -3/Research | Entered Testing 27169 | -3/Testing | Found Prototype Hackware 27179 | -3/Testing | Identified System Mapper 27187 | -3/Testing | Found Gamma Bomb Array 27224 | -3/Testing | Found Prototype Launcher 27234 | -3/Testing | Identified Com. Tesla Bomb Launcher 27268 | -3/Testing | Found Prototype Protection 27268 | -3/Testing | Identified Hvy. Regenerative Plating 27343 | -3/Testing | Found Prototype Energy Cannon 27343 | -3/Testing | Identified Cld. Nova Cannon 27389 | -3/Testing | Found Prototype Processor 27389 | -3/Testing | Identified Exp. Targeting Computer 27543 | -3/Testing | Found Prototype Processor 27563 | -3/Testing | Identified Exp. Target Analyzer 27683 | -3/Testing | Protovariant out of control (PH-WJTSAPT5EX) 27683 | -3/Testing | Unleashed a protovariant (PH-WJTSAPT5EX) 27719 | -3/Testing | Spotted Investigator 27759 | -3/Testing | Rewired Investigator 27759 | -3/Testing | Identified Dimensional Node Initializer 27759 | -3/Testing | Identified Transdimensional Reconstructor 27785 | -3/Testing | Scanned by Researcher 27815 | -3/Testing | Destroyed 7 combat bots 27924 | -3/Testing | Destroyed 7 combat bots 27944 | -3/Testing | Discovered new exit (range 4) 27946 | -3/Testing | Identified exit to Research 28177 | -3/Testing | Entered Research 28177 | -2/Research | Evolved 2 slots: Utility x2 28178 | -2/Research | Identified exit to Quarantine 28386 | -2/Research | Spotted B-90 Cyclops 28403 | -2/Research | Destroyed B-90 Cyclops 28523 | -2/Research | Build established: Bothacker-Construct 28762 | -2/Research | Discovered new exit (range 15) 28843 | -2/Research | Build established: Construct 29394 | -2/Research | Found Prototype Hackware 29489 | -2/Research | Identified Exp. Hacking Suite 29494 | -2/Research | Entered Quarantine 29602 | -2/Quarantine | Watched by a mysterious "MATRIX" hacker. 29914 | -2/Quarantine | Found Alien Reactor 30103 | -2/Quarantine | Found Alien Artifact 30302 | -2/Quarantine | Identified Matter Drive 30302 | -2/Quarantine | Identified Subatomic Replicator 30333 | -2/Quarantine | Spotted Fortress 30458 | -2/Quarantine | Discovered new exit (range 6) 30458 | -2/Quarantine | Discovered new exit (range 7) 30506 | -2/Quarantine | Entered Protoforge 30699 | -2/Protoforge | Spotted Hotshot 30700 | -2/Protoforge | Spotted Hotshot 30702 | -2/Protoforge | Spotted Hotshot 30710 | -2/Protoforge | Spotted Hotshot 30715 | -2/Protoforge | Spotted Hotshot 30715 | -2/Protoforge | Destroyed Hotshot 30718 | -2/Protoforge | Spotted Hotshot 30722 | -2/Protoforge | Superfortress began startup sequence 30727 | -2/Protoforge | Destroyed Hotshot 30734 | -2/Protoforge | Destroyed Hotshot 30748 | -2/Protoforge | Destroyed Hotshot 30749 | -2/Protoforge | Spotted Hotshot 30753 | -2/Protoforge | Spotted Hotshot 30755 | -2/Protoforge | Spotted Hotshot 30757 | -2/Protoforge | Destroyed Hotshot 30768 | -2/Protoforge | Destroyed Hotshot 30768 | -2/Protoforge | Destroyed Hotshot 30772 | -2/Protoforge | Destroyed Hotshot 30773 | -2/Protoforge | Spotted Hotshot 30776 | -2/Protoforge | Destroyed Hotshot 30783 | -2/Protoforge | Destroyed Hotshot 30804 | -2/Protoforge | Destroyed 10 combat bots 30896 | -2/Protoforge | Discovered new exit (range 14) 30940 | -2/Protoforge | Initialized slip node 31008 | -2/Protoforge | Spotted B-90 Cyclops 31060 | -2/Protoforge | Destroyed B-90 Cyclops 31174 | -2/Protoforge | Additional patrols dispatched to research labs 31199 | -2/Protoforge | Crushed by falling debris 31218 | -2/Protoforge | Found Cep. Core Shell 31221 | -2/Protoforge | Found Cep. Core Shell 31230 | -2/Protoforge | Lost 3 parts (1p2u) 31233 | -2/Protoforge | Found Prototype Device 31233 | -2/Protoforge | Identified Crosscalibrator 31246 | -2/Protoforge | Found Cep. Core Shell 31249 | -2/Protoforge | Found Cep. Core Shell 31259 | -2/Protoforge | Spotted Decapitator 31259 | -2/Protoforge | Spotted Decapitator 31260 | -2/Protoforge | Spotted Decapitator 31260 | -2/Protoforge | Spotted Decapitator 31261 | -2/Protoforge | Destroyed Decapitator 31261 | -2/Protoforge | Destroyed Decapitator 31261 | -2/Protoforge | Destroyed Decapitator 31263 | -2/Protoforge | Destroyed Decapitator 31281 | -2/Protoforge | Garrison activated, responded to threat 31312 | -2/Protoforge | Destroyed 15 combat bots 31354 | -2/Protoforge | Spotted Immortal 31360 | -2/Protoforge | Spotted Decapitator 31360 | -2/Protoforge | Spotted Decapitator 31366 | -2/Protoforge | Destroyed Decapitator 31366 | -2/Protoforge | Destroyed Decapitator 31392 | -2/Protoforge | Destroyed Immortal 31392 | -2/Protoforge | System corruption reached 10% 31478 | -2/Protoforge | Found Cep. RG22 Armor 31481 | -2/Protoforge | Found Exp. Remote Shield 31496 | -2/Protoforge | Found Prototype Device 31500 | -2/Protoforge | Identified Exp. EM Disruption Field 31502 | -2/Protoforge | Found Prototype Device 31528 | -2/Protoforge | Found Cep. RG22 Armor 31532 | -2/Protoforge | Identified Cep. Hardlight Director 31532 | -2/Protoforge | Found Cep. Beam Splitter 31538 | -2/Protoforge | Found Prototype Device 31550 | -2/Protoforge | Identified Cep. Reaction Jets 31664 | -2/Protoforge | Found Cep. Deflector Sword 31668 | -2/Protoforge | Found Cep. Plasma Driver 31670 | -2/Protoforge | Found Cep. Lightning Penetrator 31693 | -2/Protoforge | Found Faulty Cep. Disintegration Ray 31719 | -2/Protoforge | Spotted V955-o 31748 | -2/Protoforge | Destroyed V955-o 31756 | -2/Protoforge | First assault squad dispatched 31769 | -2/Protoforge | Found Cep. NT7 Matterbank 31807 | -2/Protoforge | Found Mni. Quantum Capacitor 31810 | -2/Protoforge | Found Cep. Weapon Articulator 31812 | -2/Protoforge | Found Cep. Weapon Articulator 31915 | -2/Protoforge | Destroyed 15 combat bots 31930 | -2/Protoforge | Forge Plexus network access discovered 31953 | -2/Protoforge | Spotted Decapitator 31953 | -2/Protoforge | Spotted Decapitator 31953 | -2/Protoforge | Spotted V918-y 31964 | -2/Protoforge | Spotted Decapitator 31967 | -2/Protoforge | Destroyed Decapitator 31970 | -2/Protoforge | Destroyed Decapitator 31973 | -2/Protoforge | Destroyed Decapitator 32032 | -2/Protoforge | Lost 3 allies 32102 | -2/Protoforge | Destroyed V918-y 32201 | -2/Protoforge | Spotted V501-u 32208 | -2/Protoforge | Found Cep. Chromion Battery 32210 | -2/Protoforge | Found Cep. Matter Streamer 32213 | -2/Protoforge | Found Cep. Antigrav Storage Unit 32216 | -2/Protoforge | Found Cep. Chromion Battery 32365 | -2/Protoforge | Spotted AP7-3 32365 | -2/Protoforge | Spotted AP7-3 32379 | -2/Protoforge | Destroyed AP7-3 32382 | -2/Protoforge | Destroyed AP7-3 32407 | -2/Protoforge | Found Faulty Cep. Core Analysis Suite 32410 | -2/Protoforge | Found Faulty Cep. Core Analysis Suite 32412 | -2/Protoforge | Found Cep. Cloak Mesh 32414 | -2/Protoforge | Found Faulty Cep. Cloak Mesh 32463 | -2/Protoforge | Found Cep. Zero-point Core 32535 | -2/Protoforge | Found Cep. Nanofilaments [Tensile] 32535 | -2/Protoforge | Installed Cep. Nanofilaments [Tensile], 3 resistances modified: KI +20%, TH -10%, I +20% 32543 | -2/Protoforge | Found Transdimensional Reconstructor 32775 | -2/Protoforge | Destroyed 9 combat bots 32822 | -2/Protoforge | Spotted Decapitator 32822 | -2/Protoforge | Spotted Decapitator 32890 | -2/Protoforge | Destroyed 7 combat bots 32936 | -2/Protoforge | Found Faulty Cep. Lightning Penetrator 32939 | -2/Protoforge | Found Faulty Cep. Lightning Penetrator 32941 | -2/Protoforge | Found Faulty Cep. Plasma Driver 32949 | -2/Protoforge | Warped through subspace to slip node 32952 | -2/Protoforge | Found Cep. XC Strikerail 32956 | -2/Protoforge | Entered Access 32956 | -1/Access | Evolved 2 slots: Utility x2 33070 | -1/Access | Identified exit to Command 33082 | -1/Access | Unchained authorized (1B-0RG) 33086 | -1/Access | Spotted B-99 Colossus 33127 | -1/Access | Entered Command 33178 | -1/Command | Spotted B-99 Colossus 33250 | -1/Command | Spotted M Guard 33250 | -1/Command | Spotted M Guard 33250 | -1/Command | Spotted Combat Programmer 33301 | -1/Command | Met MAIN.C 33314 | -1/Command | Destroyed MAIN.C Shell 33315 | -1/Command | MAIN.C activated Command garrisons 33315 | -1/Command | 0b10 Conduit disabled 33327 | -1/Command | Spotted Combat Programmer 33394 | -1/Command | System corruption reached 10% 33402 | -1/Command | Destroyed Combat Programmer 33411 | -1/Command | Discovered new exit (range 8) 33427 | -1/Command | Used Subatomic Replicator to replicate Cep. XC Strikerail 33433 | -1/Command | Lost 15 parts (3p7u5w) 33456 | *** | Escaped! Last Messages --------------- 33440_ Deflected attack with Cep. Deflector Sword. 33440_ Knocked back. 33440_ R-10 Processor collects Com. Wheel. 33443_ Slug penetrates Wall. 33444_ Penetrated by Slug. 33444_ Slug penetrates B-74 Champion. 33444_ Slug penetrates Wall. 33446_ Deflected attack with Cep. Deflector Sword. 33449_ EMDS Slug penetrates Wall. 33450_ Slug penetrates Wall. 33451_ EMDS Slug penetrates Wall. 33454_ C-45 Heavy ARC bursts open, deploying its payload. 33454_ H-88 Terminator unfolds itself. 33454_ Slug penetrates Wall. 33454_ Penetrated by Slug. 33455_ UNSDH:IJOM6 GI0%KGSA2T:BNFK 33455_ Cep. XC Strikerail destroyed. 33455_ Quantum Router disabled. 33456_ EMDS Slug penetrates Recycling Unit. 33456_ Imp. Thunder Leg tumbles out of recycling unit. Map ----- +----------------------------------------------------+ | ??????????????????????????????????????????????? | | ??????????????????????????????????????????????? | | ?????????????????????????????????????????????? | | ??????????????????????????????????????????????? | | ??????????????????????????????????????????????? | | ??????????????????????????????????????????????? | | ??????????????????????????????????????????????? | | #??????????????????????????????????????????????? | | #??????????????????????????????????????????????? | | #??????????????????????????????????????????????? | | #???########??????????????##+##????????????????? | | #???# #?????????????? #????????????????? | | #???# #??????????????# #????????????????? | | #???# #??????????????# #????????????????? | | #???# #????????#######^ #????????????????? | | #???# ##+####### # #????????????????? | | ##### # # # #????????????????? | | # # # # #????????????????? | | % / # "" # + #????????????????? | | # # "" # # #????????????????? | | # " "Y !=# # % #???????????###### | | # # " !/# # #??????????""""""" | | !! # # = "###### #?????????#"" | | !! %# " ####### #?????????#"" " | | !! !# # # ## #?????????#"" " | | %######### # @ ## #?????????#" | | " ## #?????????#" " | | %%" ## #?????????#"" | | ############ ###### #?????????# | | ! ==* ] # ###### #?????????# | | ! =** + "" #?????????# | | | =* # """" #?????????#"" | | # "" #?????????#"" % | | # #?????????# | | # #????###??# | | # " %###### #### | | ############ "%" | | ???????????# " | | ???????????# | | ???????????# ##### " | | ???????????# =/ #???# " | | ???????????+ / #???#% " | | ???????????? ? #???######## | | ?????????????????######## #??????????? | | ????????????????????????# #??????????? | | ????????????????????????+ = #??????????? | | ????????????????????????# #??????????? | | ????????????????????????# #??????????? | | ????????????????????????# === #??????????? | | ????????????????????????# === ??????????? | +----------------------------------------------------+ Best States ------------- Heat Dissipation 162 Coolant Potential 100 Energy Generation 74 Energy Capacity 1908 Matter Stores 300 Matter Capacity 300 Sight Range 22 Robot Scan Range 18 Terrain Scan Density 10 Jamming Range 16 Cloak Strength 9 Power Amplification 30 Base Temperature (-) 200 EM Shielding 2 Corruption Containment 12 Corruption Block 14 Armor Coverage 600 Resistance: KI 20 Resistance: TH 75 Resistance: I 20 Core Shielding 90 Propulsion Shielding 90 Utility Shielding 66 Weapon Shielding 90 Projectile Deflection 15 Weapon Cycling 15 Phase Shifting 10 Evasion (%) 80 Targeting Accuracy 30 Target Analysis 5 Core Analysis 11 Recoil Reduction 4 Particle Charging 30 Kinecelleration 40 Offensive Hacking 20 Defensive Hacking 10 Relay Coupler Types 4 Relay Coupler Value 108 Trap Extractor Capacity 6 Item Schematics ----------------- Assault Drone Bay | -4/Zhirov | Free Exp. Heat Sink | -4/Zhirov | Free Exp. Optical Array | -4/Zhirov | Free Imp. Arc Thrower | -4/Zhirov | Free Mni. Smartbomb Launcher | -3/Testing | Archive Exp. Myomer Leg | -3/Testing | Archive Hvy. Wave Gun | -3/Testing | Archive Adv. Micro-nuke Launcher | -3/Testing | Archive Helical Railgun | -2/Quarantine | Archive Lrn. Phase Cannon | -2/Quarantine | Archive Imp. Matter Neutralizer | -2/Protoforge | Archive Prc. Phase Gun | -2/Protoforge | Archive Adv. Gravity Neutralizer | -2/Protoforge | Archive Hvy. Neutron Cannon | -2/Protoforge | Archive Exp. Gyrokinetic Inverter | -2/Protoforge | Archive Robot Schematics ------------------ R-06 Scavenger | -3/Testing | Archive A-27 Freighter | -3/Testing | Archive G-73 Enforcer | -2/Protoforge | Archive E-15 Imp | -2/Protoforge | Archive Fabricated ------------ Nothing Repaired ---------- Nothing Studied --------- Lgt. Treads | -8/Materials | Hacked Minigun | -8/Materials | Hacked Missile Launcher | -8/Materials | Hacked Deuterium Engine | -8/Materials | Hacked Imp. Ion Engine | -8/Materials | Hacked Flail | -8/Materials | Hacked Scythe | -8/Materials | Hacked Adv. Treads | -8/Materials | Hacked Med. Treads | -7/Factory | Hacked Fusion Bomb Launcher | -2/Quarantine | Hacked Com. HERF Cannon | -2/Quarantine | Hacked Alien Tech Used ----------------- Integrated Dissipator Dimensional Node Initializer Matter Drive Concept Nanofilaments [Tensile] Transdimensional Reconstructor Subatomic Replicator Achievements -------------- Stay Cool Under Fire Challenges ------------ None Game ------ Seed ScanScrapFlightbrick Manual? 0 Play Time 04:52:48 Cumulative 2227.1 hours Start 2026.04.30 @ 03:15:32 End 2026.05.01 @ 03:59:34 Sessions 5 Manual Loads 0 Difficulty Rogue Special Mode None Game No. 1402 Rogue 1398 Adventurer 4 Explorer 0 Win Type 0 Total 317 Types 238/14/26/11/3/1/5/10/5/4 Lore% 99 Gallery% 96 Achievement% 94 Wizard Run 0 Options --------- Layout 2 ASCII 0 Keyboard 1 Movement Vi Keybinds 0 Fullscreen 0 Font 24/Terminus Map View 59x48 Zoom Use 0% Tactical HUD 1 Map Filters NONE Filters NONE Steam 1 RUN: 444e3de3-6913-4b17-bf68-13eeee066fd4